{"text_format":"3","workbook":"xlsx","n_sheets":4,"sheets":["BUDGETÜBERSICHT (JAHR BIS DATO)","ZUS.FASSUNG MONATLICHE AUSGABEN","EINZELAUFLISTUNG DER AUSGABEN","SPENDEN & SPONSORING"],"not_rendered":{"defined_names":15},"read":"whole","date_system":"1900"}

{"sheet":"BUDGETÜBERSICHT (JAHR BIS DATO)","index":0,"n_rows":17,"n_cols":7,"rows_kept":17,"merged":[[1,1,1,4]]}
[null,"ZUSAMMENFASSUNG MONATLICHE AUSGABEN"]
[null,"ISTWERT vs. BUDGET JAHR BIS HEUTE",{"$nulls":3},"Jahr",{"$f":"YEAR(TODAY())","v":2019}]
[]
[null,"G/L-Code","Kontotitel","Ist","Budget","Verbleibend in €","Verbleibend in %"]
[null,1000,"Werbung",{"$f":"SUMIF(MonatlicheAusgabenZusammenfassung[G/L-Code],JahrBisDatoTabelle[[#This Row],[G/L-Code]],MonatlicheAusgabenZusammenfassung[Summe])","v":{"v":0,"d":"0.00 €"}},{"v":100000,"d":"100,000.00 €"},{"$f":"IF(JahrBisDatoTabelle[[#This Row],[Budget]]=\"\",\"\",JahrBisDatoTabelle[[#This Row],[Budget]]-JahrBisDatoTabelle[[#This Row],[Ist]])","v":{"v":100000,"d":"100,000.00 €"}},{"$f":"IFERROR(JahrBisDatoTabelle[[#This Row],[Verbleibend in €]]/JahrBisDatoTabelle[[#This Row],[Budget]],\"\")","v":{"v":1,"d":"100.00%"}}]
[null,2000,"Büroausstattung",{"$f":"SUMIF(MonatlicheAusgabenZusammenfassung[G/L-Code],JahrBisDatoTabelle[[#This Row],[G/L-Code]],MonatlicheAusgabenZusammenfassung[Summe])","v":{"v":0,"d":"0.00 €"}},{"v":100000,"d":"100,000.00 €"},{"$f":"IF(JahrBisDatoTabelle[[#This Row],[Budget]]=\"\",\"\",JahrBisDatoTabelle[[#This Row],[Budget]]-JahrBisDatoTabelle[[#This Row],[Ist]])","v":{"v":100000,"d":"100,000.00 €"}},{"$f":"IFERROR(JahrBisDatoTabelle[[#This Row],[Verbleibend in €]]/JahrBisDatoTabelle[[#This Row],[Budget]],\"\")","v":{"v":1,"d":"100.00%"}}]
[null,3000,"Drucker",{"$f":"SUMIF(MonatlicheAusgabenZusammenfassung[G/L-Code],JahrBisDatoTabelle[[#This Row],[G/L-Code]],MonatlicheAusgabenZusammenfassung[Summe])","v":{"v":0,"d":"0.00 €"}},{"v":100000,"d":"100,000.00 €"},{"$f":"IF(JahrBisDatoTabelle[[#This Row],[Budget]]=\"\",\"\",JahrBisDatoTabelle[[#This Row],[Budget]]-JahrBisDatoTabelle[[#This Row],[Ist]])","v":{"v":100000,"d":"100,000.00 €"}},{"$f":"IFERROR(JahrBisDatoTabelle[[#This Row],[Verbleibend in €]]/JahrBisDatoTabelle[[#This Row],[Budget]],\"\")","v":{"v":1,"d":"100.00%"}}]
[null,4000,"Server-Kosten",{"$f":"SUMIF(MonatlicheAusgabenZusammenfassung[G/L-Code],JahrBisDatoTabelle[[#This Row],[G/L-Code]],MonatlicheAusgabenZusammenfassung[Summe])","v":{"v":0,"d":"0.00 €"}},{"v":100000,"d":"100,000.00 €"},{"$f":"IF(JahrBisDatoTabelle[[#This Row],[Budget]]=\"\",\"\",JahrBisDatoTabelle[[#This Row],[Budget]]-JahrBisDatoTabelle[[#This Row],[Ist]])","v":{"v":100000,"d":"100,000.00 €"}},{"$f":"IFERROR(JahrBisDatoTabelle[[#This Row],[Verbleibend in €]]/JahrBisDatoTabelle[[#This Row],[Budget]],\"\")","v":{"v":1,"d":"100.00%"}}]
[null,5000,"Betriebsmittel",{"$f":"SUMIF(MonatlicheAusgabenZusammenfassung[G/L-Code],JahrBisDatoTabelle[[#This Row],[G/L-Code]],MonatlicheAusgabenZusammenfassung[Summe])","v":{"v":0,"d":"0.00 €"}},{"v":50000,"d":"50,000.00 €"},{"$f":"IF(JahrBisDatoTabelle[[#This Row],[Budget]]=\"\",\"\",JahrBisDatoTabelle[[#This Row],[Budget]]-JahrBisDatoTabelle[[#This Row],[Ist]])","v":{"v":50000,"d":"50,000.00 €"}},{"$f":"IFERROR(JahrBisDatoTabelle[[#This Row],[Verbleibend in €]]/JahrBisDatoTabelle[[#This Row],[Budget]],\"\")","v":{"v":1,"d":"100.00%"}}]
[null,6000,"Client-Ausgaben",{"$f":"SUMIF(MonatlicheAusgabenZusammenfassung[G/L-Code],JahrBisDatoTabelle[[#This Row],[G/L-Code]],MonatlicheAusgabenZusammenfassung[Summe])","v":{"v":0,"d":"0.00 €"}},{"v":25000,"d":"25,000.00 €"},{"$f":"IF(JahrBisDatoTabelle[[#This Row],[Budget]]=\"\",\"\",JahrBisDatoTabelle[[#This Row],[Budget]]-JahrBisDatoTabelle[[#This Row],[Ist]])","v":{"v":25000,"d":"25,000.00 €"}},{"$f":"IFERROR(JahrBisDatoTabelle[[#This Row],[Verbleibend in €]]/JahrBisDatoTabelle[[#This Row],[Budget]],\"\")","v":{"v":1,"d":"100.00%"}}]
[null,7000,"Computer",{"$f":"SUMIF(MonatlicheAusgabenZusammenfassung[G/L-Code],JahrBisDatoTabelle[[#This Row],[G/L-Code]],MonatlicheAusgabenZusammenfassung[Summe])","v":{"v":0,"d":"0.00 €"}},{"v":75000,"d":"75,000.00 €"},{"$f":"IF(JahrBisDatoTabelle[[#This Row],[Budget]]=\"\",\"\",JahrBisDatoTabelle[[#This Row],[Budget]]-JahrBisDatoTabelle[[#This Row],[Ist]])","v":{"v":75000,"d":"75,000.00 €"}},{"$f":"IFERROR(JahrBisDatoTabelle[[#This Row],[Verbleibend in €]]/JahrBisDatoTabelle[[#This Row],[Budget]],\"\")","v":{"v":1,"d":"100.00%"}}]
[null,8000,"Krankenversicherung",{"$f":"SUMIF(MonatlicheAusgabenZusammenfassung[G/L-Code],JahrBisDatoTabelle[[#This Row],[G/L-Code]],MonatlicheAusgabenZusammenfassung[Summe])","v":{"v":0,"d":"0.00 €"}},{"v":65000,"d":"65,000.00 €"},{"$f":"IF(JahrBisDatoTabelle[[#This Row],[Budget]]=\"\",\"\",JahrBisDatoTabelle[[#This Row],[Budget]]-JahrBisDatoTabelle[[#This Row],[Ist]])","v":{"v":65000,"d":"65,000.00 €"}},{"$f":"IFERROR(JahrBisDatoTabelle[[#This Row],[Verbleibend in €]]/JahrBisDatoTabelle[[#This Row],[Budget]],\"\")","v":{"v":1,"d":"100.00%"}}]
[null,9000,"Gebäudekosten",{"$f":"SUMIF(MonatlicheAusgabenZusammenfassung[G/L-Code],JahrBisDatoTabelle[[#This Row],[G/L-Code]],MonatlicheAusgabenZusammenfassung[Summe])","v":{"v":0,"d":"0.00 €"}},{"v":125000,"d":"125,000.00 €"},{"$f":"IF(JahrBisDatoTabelle[[#This Row],[Budget]]=\"\",\"\",JahrBisDatoTabelle[[#This Row],[Budget]]-JahrBisDatoTabelle[[#This Row],[Ist]])","v":{"v":125000,"d":"125,000.00 €"}},{"$f":"IFERROR(JahrBisDatoTabelle[[#This Row],[Verbleibend in €]]/JahrBisDatoTabelle[[#This Row],[Budget]],\"\")","v":{"v":1,"d":"100.00%"}}]
[null,10000,"Marketing",{"$f":"SUMIF(MonatlicheAusgabenZusammenfassung[G/L-Code],JahrBisDatoTabelle[[#This Row],[G/L-Code]],MonatlicheAusgabenZusammenfassung[Summe])","v":{"v":0,"d":"0.00 €"}},{"v":100000,"d":"100,000.00 €"},{"$f":"IF(JahrBisDatoTabelle[[#This Row],[Budget]]=\"\",\"\",JahrBisDatoTabelle[[#This Row],[Budget]]-JahrBisDatoTabelle[[#This Row],[Ist]])","v":{"v":100000,"d":"100,000.00 €"}},{"$f":"IFERROR(JahrBisDatoTabelle[[#This Row],[Verbleibend in €]]/JahrBisDatoTabelle[[#This Row],[Budget]],\"\")","v":{"v":1,"d":"100.00%"}}]
[null,11000,"Spenden",{"$f":"SUMIF(MonatlicheAusgabenZusammenfassung[G/L-Code],JahrBisDatoTabelle[[#This Row],[G/L-Code]],MonatlicheAusgabenZusammenfassung[Summe])","v":{"v":0,"d":"0.00 €"}},{"v":250000,"d":"250,000.00 €"},{"$f":"IF(JahrBisDatoTabelle[[#This Row],[Budget]]=\"\",\"\",JahrBisDatoTabelle[[#This Row],[Budget]]-JahrBisDatoTabelle[[#This Row],[Ist]])","v":{"v":250000,"d":"250,000.00 €"}},{"$f":"IFERROR(JahrBisDatoTabelle[[#This Row],[Verbleibend in €]]/JahrBisDatoTabelle[[#This Row],[Budget]],\"\")","v":{"v":1,"d":"100.00%"}}]
[null,12000,"Sponsoring",{"$f":"SUMIF(MonatlicheAusgabenZusammenfassung[G/L-Code],JahrBisDatoTabelle[[#This Row],[G/L-Code]],MonatlicheAusgabenZusammenfassung[Summe])","v":{"v":0,"d":"0.00 €"}},{"v":50000,"d":"50,000.00 €"},{"$f":"IF(JahrBisDatoTabelle[[#This Row],[Budget]]=\"\",\"\",JahrBisDatoTabelle[[#This Row],[Budget]]-JahrBisDatoTabelle[[#This Row],[Ist]])","v":{"v":50000,"d":"50,000.00 €"}},{"$f":"IFERROR(JahrBisDatoTabelle[[#This Row],[Verbleibend in €]]/JahrBisDatoTabelle[[#This Row],[Budget]],\"\")","v":{"v":1,"d":"100.00%"}}]
[null,"Ergebnis",null,{"$f":"SUBTOTAL(109,JahrBisDatoTabelle[Ist])","v":{"v":0,"d":"0.00 €"}},{"$f":"SUBTOTAL(109,JahrBisDatoTabelle[Budget])","v":{"v":1140000,"d":"1,140,000.00 €"}},{"$f":"SUBTOTAL(109,JahrBisDatoTabelle[Verbleibend in €])","v":{"v":1140000,"d":"1,140,000.00 €"}},{"$f":"JahrBisDatoTabelle[[#Totals],[Verbleibend in €]]/JahrBisDatoTabelle[[#Totals],[Budget]]","v":{"v":1,"d":"100.00%"}}]

{"sheet":"ZUS.FASSUNG MONATLICHE AUSGABEN","index":1,"n_rows":18,"n_cols":17,"rows_kept":18,"merged":[[1,1,1,16]]}
[null,"BUDGETÜBERSICHT (JAHR BIS DATO)","EINZELAUFLISTUNG DER AUSGABEN"]
[null,"ZUSAMMENFASSUNG MONATLICHE AUSGABEN"]
[null,"Datenschnitt zum Filtern von Daten nach Kontotiteln in dieser Zelle.",null,{"$f":"DATEVALUE(\"1-JAN\"&_xlfn.SINGLE(_JAHR))","v":{"v":43466,"d":"4346600.00%"}},{"$f":"DATEVALUE(\"1-FEB\"&_xlfn.SINGLE(_JAHR))","v":{"v":43497,"d":"4349700.00%"}},{"$f":"DATEVALUE(\"1-MRZ\"&_xlfn.SINGLE(_JAHR))","v":{"v":43525,"d":"4352500.00%"}},{"$f":"DATEVALUE(\"1-APR\"&_xlfn.SINGLE(_JAHR))","v":{"v":43556,"d":"4355600.00%"}},{"$f":"DATEVALUE(\"1-MAI\"&_JAHR)","v":{"v":43586,"d":"4358600.00%"}},{"$f":"DATEVALUE(\"1-JUN\"&_xlfn.SINGLE(_JAHR))","v":{"v":43617,"d":"4361700.00%"}},{"$f":"DATEVALUE(\"1-JUL\"&_JAHR)","v":{"v":43647,"d":"4364700.00%"}},{"$f":"DATEVALUE(\"1-AUG\"&_xlfn.SINGLE(_JAHR))","v":{"v":43678,"d":"4367800.00%"}},{"$f":"DATEVALUE(\"1-SEP\"&_xlfn.SINGLE(_JAHR))","v":{"v":43709,"d":"4370900.00%"}},{"$f":"DATEVALUE(\"1-OKT\"&_JAHR)","v":{"v":43739,"d":"4373900.00%"}},{"$f":"DATEVALUE(\"1-NOV\"&_xlfn.SINGLE(_JAHR))","v":{"v":43770,"d":"4377000.00%"}},{"$f":"DATEVALUE(\"1-DEZ\"&_JAHR)","v":{"v":43800,"d":"4380000.00%"}}]
[{"$nulls":3},{"$f":"EOMONTH(D3,0)","v":{"v":43496,"d":"4349600.00%"}},{"$f":"EOMONTH(E3,0)","v":{"v":43524,"d":"4352400.00%"}},{"$f":"EOMONTH(F3,0)","v":{"v":43555,"d":"4355500.00%"}},{"$f":"EOMONTH(G3,0)","v":{"v":43585,"d":"4358500.00%"}},{"$f":"EOMONTH(H3,0)","v":{"v":43616,"d":"4361600.00%"}},{"$f":"EOMONTH(I3,0)","v":{"v":43646,"d":"4364600.00%"}},{"v":43677,"d":"4367700.00%"},{"v":43708,"d":"4370800.00%"},{"v":43738,"d":"4373800.00%"},{"v":43769,"d":"4376900.00%"},{"v":43799,"d":"4379900.00%"},{"v":43830,"d":"4383000.00%"}]
[null,"G/L-Code","Kontotitel","Januar","Februar","März","April","Mai","Juni","Juli","August","September","Oktober","November","Dezember","Summe"," "]
[null,1000,"Werbung",{"$f":"SUMIFS(AusgabenEinzelauflistung[Scheckbetrag],AusgabenEinzelauflistung[G/L-Code],MonatlicheAusgabenZusammenfassung[[#This Row],[G/L-Code]],AusgabenEinzelauflistung[Rechnungsdatum],\">=\"&D$3,AusgabenEinzelauflistung[Rechnungsdatum],\"<=\"&D$4)+SUMIFS(Sonstiges[Scheckbetrag],Sonstiges[G/L-Code],MonatlicheAusgabenZusammenfassung[[#This Row],[G/L-Code]],Sonstiges[Datum der Scheckeinreichung],\">=\"&DATEVALUE(\" 1. \"&MonatlicheAusgabenZusammenfassung[[#Headers],[Januar]]&_xlfn.SINGLE(_JAHR)),Sonstiges[Datum der Scheckeinreichung],\"<=\"&D$4)","v":{"v":0,"d":"0.00 €"}},{"$f":"SUMIFS(AusgabenEinzelauflistung[Scheckbetrag],AusgabenEinzelauflistung[G/L-Code],MonatlicheAusgabenZusammenfassung[[#This Row],[G/L-Code]],AusgabenEinzelauflistung[Rechnungsdatum],\">=\"&E$3,AusgabenEinzelauflistung[Rechnungsdatum],\"<=\"&E$4)+SUMIFS(Sonstiges[Scheckbetrag],Sonstiges[G/L-Code],MonatlicheAusgabenZusammenfassung[[#This Row],[G/L-Code]],Sonstiges[Datum der Scheckeinreichung],\">=\"&DATEVALUE(\" 1. \"&MonatlicheAusgabenZusammenfassung[[#Headers],[Februar]]&_xlfn.SINGLE(_JAHR)),Sonstiges[Datum der Scheckeinreichung],\"<=\"&E$4)","v":{"v":0,"d":"0.00 €"}},{"$f":"SUMIFS(AusgabenEinzelauflistung[Scheckbetrag],AusgabenEinzelauflistung[G/L-Code],MonatlicheAusgabenZusammenfassung[[#This Row],[G/L-Code]],AusgabenEinzelauflistung[Rechnungsdatum],\">=\"&F$3,AusgabenEinzelauflistung[Rechnungsdatum],\"<=\"&F$4)+SUMIFS(Sonstiges[Scheckbetrag],Sonstiges[G/L-Code],MonatlicheAusgabenZusammenfassung[[#This Row],[G/L-Code]],Sonstiges[Datum der Scheckeinreichung],\">=\"&DATEVALUE(\" 1. \"&MonatlicheAusgabenZusammenfassung[[#Headers],[März]]&_xlfn.SINGLE(_JAHR)),Sonstiges[Datum der Scheckeinreichung],\"<=\"&F$4)","v":{"v":0,"d":"0.00 €"}},{"$f":"SUMIFS(AusgabenEinzelauflistung[Scheckbetrag],AusgabenEinzelauflistung[G/L-Code],MonatlicheAusgabenZusammenfassung[[#This Row],[G/L-Code]],AusgabenEinzelauflistung[Rechnungsdatum],\">=\"&G$3,AusgabenEinzelauflistung[Rechnungsdatum],\"<=\"&G$4)+SUMIFS(Sonstiges[Scheckbetrag],Sonstiges[G/L-Code],MonatlicheAusgabenZusammenfassung[[#This Row],[G/L-Code]],Sonstiges[Datum der Scheckeinreichung],\">=\"&DATEVALUE(\" 1. \"&MonatlicheAusgabenZusammenfassung[[#Headers],[April]]&_xlfn.SINGLE(_JAHR)),Sonstiges[Datum der Scheckeinreichung],\"<=\"&G$4)","v":{"v":0,"d":"0.00 €"}},{"$f":"SUMIFS(AusgabenEinzelauflistung[Scheckbetrag],AusgabenEinzelauflistung[G/L-Code],MonatlicheAusgabenZusammenfassung[[#This Row],[G/L-Code]],AusgabenEinzelauflistung[Rechnungsdatum],\">=\"&H$3,AusgabenEinzelauflistung[Rechnungsdatum],\"<=\"&H$4)+SUMIFS(Sonstiges[Scheckbetrag],Sonstiges[G/L-Code],MonatlicheAusgabenZusammenfassung[[#This Row],[G/L-Code]],Sonstiges[Datum der Scheckeinreichung],\">=\"&DATEVALUE(\" 1. \"&MonatlicheAusgabenZusammenfassung[[#Headers],[Mai]]&_xlfn.SINGLE(_JAHR)),Sonstiges[Datum der Scheckeinreichung],\"<=\"&H$4)","v":{"v":0,"d":"0.00 €"}},{"$f":"SUMIFS(AusgabenEinzelauflistung[Scheckbetrag],AusgabenEinzelauflistung[G/L-Code],MonatlicheAusgabenZusammenfassung[[#This Row],[G/L-Code]],AusgabenEinzelauflistung[Rechnungsdatum],\">=\"&I$3,AusgabenEinzelauflistung[Rechnungsdatum],\"<=\"&I$4)+SUMIFS(Sonstiges[Scheckbetrag],Sonstiges[G/L-Code],MonatlicheAusgabenZusammenfassung[[#This Row],[G/L-Code]],Sonstiges[Datum der Scheckeinreichung],\">=\"&DATEVALUE(\" 1. \"&MonatlicheAusgabenZusammenfassung[[#Headers],[Juni]]&_xlfn.SINGLE(_JAHR)),Sonstiges[Datum der Scheckeinreichung],\"<=\"&I$4)","v":{"v":0,"d":"0.00 €"}},{"$f":"SUMIFS(AusgabenEinzelauflistung[Scheckbetrag],AusgabenEinzelauflistung[G/L-Code],MonatlicheAusgabenZusammenfassung[[#This Row],[G/L-Code]],AusgabenEinzelauflistung[Rechnungsdatum],\">=\"&J$3,AusgabenEinzelauflistung[Rechnungsdatum],\"<=\"&J$4)+SUMIFS(Sonstiges[Scheckbetrag],Sonstiges[G/L-Code],MonatlicheAusgabenZusammenfassung[[#This Row],[G/L-Code]],Sonstiges[Datum der Scheckeinreichung],\">=\"&DATEVALUE(\" 1. \"&MonatlicheAusgabenZusammenfassung[[#Headers],[Juli]]&_xlfn.SINGLE(_JAHR)),Sonstiges[Datum der Scheckeinreichung],\"<=\"&J$4)","v":{"v":0,"d":"0.00 €"}},{"$f":"SUMIFS(AusgabenEinzelauflistung[Scheckbetrag],AusgabenEinzelauflistung[G/L-Code],MonatlicheAusgabenZusammenfassung[[#This Row],[G/L-Code]],AusgabenEinzelauflistung[Rechnungsdatum],\">=\"&K$3,AusgabenEinzelauflistung[Rechnungsdatum],\"<=\"&K$4)+SUMIFS(Sonstiges[Scheckbetrag],Sonstiges[G/L-Code],MonatlicheAusgabenZusammenfassung[[#This Row],[G/L-Code]],Sonstiges[Datum der Scheckeinreichung],\">=\"&DATEVALUE(\" 1. \"&MonatlicheAusgabenZusammenfassung[[#Headers],[August]]&_xlfn.SINGLE(_JAHR)),Sonstiges[Datum der Scheckeinreichung],\"<=\"&K$4)","v":{"v":0,"d":"0.00 €"}},{"$f":"SUMIFS(AusgabenEinzelauflistung[Scheckbetrag],AusgabenEinzelauflistung[G/L-Code],MonatlicheAusgabenZusammenfassung[[#This Row],[G/L-Code]],AusgabenEinzelauflistung[Rechnungsdatum],\">=\"&L$3,AusgabenEinzelauflistung[Rechnungsdatum],\"<=\"&L$4)+SUMIFS(Sonstiges[Scheckbetrag],Sonstiges[G/L-Code],MonatlicheAusgabenZusammenfassung[[#This Row],[G/L-Code]],Sonstiges[Datum der Scheckeinreichung],\">=\"&DATEVALUE(\" 1. \"&MonatlicheAusgabenZusammenfassung[[#Headers],[September]]&_xlfn.SINGLE(_JAHR)),Sonstiges[Datum der Scheckeinreichung],\"<=\"&L$4)","v":{"v":0,"d":"0.00 €"}},{"$f":"SUMIFS(AusgabenEinzelauflistung[Scheckbetrag],AusgabenEinzelauflistung[G/L-Code],MonatlicheAusgabenZusammenfassung[[#This Row],[G/L-Code]],AusgabenEinzelauflistung[Rechnungsdatum],\">=\"&M$3,AusgabenEinzelauflistung[Rechnungsdatum],\"<=\"&M$4)+SUMIFS(Sonstiges[Scheckbetrag],Sonstiges[G/L-Code],MonatlicheAusgabenZusammenfassung[[#This Row],[G/L-Code]],Sonstiges[Datum der Scheckeinreichung],\">=\"&DATEVALUE(\" 1. \"&MonatlicheAusgabenZusammenfassung[[#Headers],[Oktober]]&_xlfn.SINGLE(_JAHR)),Sonstiges[Datum der Scheckeinreichung],\"<=\"&M$4)","v":{"v":0,"d":"0.00 €"}},{"$f":"SUMIFS(AusgabenEinzelauflistung[Scheckbetrag],AusgabenEinzelauflistung[G/L-Code],MonatlicheAusgabenZusammenfassung[[#This Row],[G/L-Code]],AusgabenEinzelauflistung[Rechnungsdatum],\">=\"&N$3,AusgabenEinzelauflistung[Rechnungsdatum],\"<=\"&N$4)+SUMIFS(Sonstiges[Scheckbetrag],Sonstiges[G/L-Code],MonatlicheAusgabenZusammenfassung[[#This Row],[G/L-Code]],Sonstiges[Datum der Scheckeinreichung],\">=\"&DATEVALUE(\" 1. \"&MonatlicheAusgabenZusammenfassung[[#Headers],[November]]&_xlfn.SINGLE(_JAHR)),Sonstiges[Datum der Scheckeinreichung],\"<=\"&N$4)","v":{"v":0,"d":"0.00 €"}},{"$f":"SUMIFS(AusgabenEinzelauflistung[Scheckbetrag],AusgabenEinzelauflistung[G/L-Code],MonatlicheAusgabenZusammenfassung[[#This Row],[G/L-Code]],AusgabenEinzelauflistung[Rechnungsdatum],\">=\"&O$3,AusgabenEinzelauflistung[Rechnungsdatum],\"<=\"&O$4)+SUMIFS(Sonstiges[Scheckbetrag],Sonstiges[G/L-Code],MonatlicheAusgabenZusammenfassung[[#This Row],[G/L-Code]],Sonstiges[Datum der Scheckeinreichung],\">=\"&DATEVALUE(\" 1. \"&MonatlicheAusgabenZusammenfassung[[#Headers],[Dezember]]&_xlfn.SINGLE(_JAHR)),Sonstiges[Datum der Scheckeinreichung],\"<=\"&O$4)","v":{"v":0,"d":"0.00 €"}},{"$f":"SUM(MonatlicheAusgabenZusammenfassung[[#This Row],[Januar]:[Dezember]])","v":{"v":0,"d":"0.00 €"}}]
[null,2000,"Büroausstattung",{"$f":"SUMIFS(AusgabenEinzelauflistung[Scheckbetrag],AusgabenEinzelauflistung[G/L-Code],MonatlicheAusgabenZusammenfassung[[#This Row],[G/L-Code]],AusgabenEinzelauflistung[Rechnungsdatum],\">=\"&D$3,AusgabenEinzelauflistung[Rechnungsdatum],\"<=\"&D$4)+SUMIFS(Sonstiges[Scheckbetrag],Sonstiges[G/L-Code],MonatlicheAusgabenZusammenfassung[[#This Row],[G/L-Code]],Sonstiges[Datum der Scheckeinreichung],\">=\"&DATEVALUE(\" 1. \"&MonatlicheAusgabenZusammenfassung[[#Headers],[Januar]]&_xlfn.SINGLE(_JAHR)),Sonstiges[Datum der Scheckeinreichung],\"<=\"&D$4)","v":{"v":0,"d":"0.00 €"}},{"$f":"SUMIFS(AusgabenEinzelauflistung[Scheckbetrag],AusgabenEinzelauflistung[G/L-Code],MonatlicheAusgabenZusammenfassung[[#This Row],[G/L-Code]],AusgabenEinzelauflistung[Rechnungsdatum],\">=\"&E$3,AusgabenEinzelauflistung[Rechnungsdatum],\"<=\"&E$4)+SUMIFS(Sonstiges[Scheckbetrag],Sonstiges[G/L-Code],MonatlicheAusgabenZusammenfassung[[#This Row],[G/L-Code]],Sonstiges[Datum der Scheckeinreichung],\">=\"&DATEVALUE(\" 1. \"&MonatlicheAusgabenZusammenfassung[[#Headers],[Februar]]&_xlfn.SINGLE(_JAHR)),Sonstiges[Datum der Scheckeinreichung],\"<=\"&E$4)","v":{"v":0,"d":"0.00 €"}},{"$f":"SUMIFS(AusgabenEinzelauflistung[Scheckbetrag],AusgabenEinzelauflistung[G/L-Code],MonatlicheAusgabenZusammenfassung[[#This Row],[G/L-Code]],AusgabenEinzelauflistung[Rechnungsdatum],\">=\"&F$3,AusgabenEinzelauflistung[Rechnungsdatum],\"<=\"&F$4)+SUMIFS(Sonstiges[Scheckbetrag],Sonstiges[G/L-Code],MonatlicheAusgabenZusammenfassung[[#This Row],[G/L-Code]],Sonstiges[Datum der Scheckeinreichung],\">=\"&DATEVALUE(\" 1. \"&MonatlicheAusgabenZusammenfassung[[#Headers],[März]]&_xlfn.SINGLE(_JAHR)),Sonstiges[Datum der Scheckeinreichung],\"<=\"&F$4)","v":{"v":0,"d":"0.00 €"}},{"$f":"SUMIFS(AusgabenEinzelauflistung[Scheckbetrag],AusgabenEinzelauflistung[G/L-Code],MonatlicheAusgabenZusammenfassung[[#This Row],[G/L-Code]],AusgabenEinzelauflistung[Rechnungsdatum],\">=\"&G$3,AusgabenEinzelauflistung[Rechnungsdatum],\"<=\"&G$4)+SUMIFS(Sonstiges[Scheckbetrag],Sonstiges[G/L-Code],MonatlicheAusgabenZusammenfassung[[#This Row],[G/L-Code]],Sonstiges[Datum der Scheckeinreichung],\">=\"&DATEVALUE(\" 1. \"&MonatlicheAusgabenZusammenfassung[[#Headers],[April]]&_xlfn.SINGLE(_JAHR)),Sonstiges[Datum der Scheckeinreichung],\"<=\"&G$4)","v":{"v":0,"d":"0.00 €"}},{"$f":"SUMIFS(AusgabenEinzelauflistung[Scheckbetrag],AusgabenEinzelauflistung[G/L-Code],MonatlicheAusgabenZusammenfassung[[#This Row],[G/L-Code]],AusgabenEinzelauflistung[Rechnungsdatum],\">=\"&H$3,AusgabenEinzelauflistung[Rechnungsdatum],\"<=\"&H$4)+SUMIFS(Sonstiges[Scheckbetrag],Sonstiges[G/L-Code],MonatlicheAusgabenZusammenfassung[[#This Row],[G/L-Code]],Sonstiges[Datum der Scheckeinreichung],\">=\"&DATEVALUE(\" 1. \"&MonatlicheAusgabenZusammenfassung[[#Headers],[Mai]]&_xlfn.SINGLE(_JAHR)),Sonstiges[Datum der Scheckeinreichung],\"<=\"&H$4)","v":{"v":0,"d":"0.00 €"}},{"$f":"SUMIFS(AusgabenEinzelauflistung[Scheckbetrag],AusgabenEinzelauflistung[G/L-Code],MonatlicheAusgabenZusammenfassung[[#This Row],[G/L-Code]],AusgabenEinzelauflistung[Rechnungsdatum],\">=\"&I$3,AusgabenEinzelauflistung[Rechnungsdatum],\"<=\"&I$4)+SUMIFS(Sonstiges[Scheckbetrag],Sonstiges[G/L-Code],MonatlicheAusgabenZusammenfassung[[#This Row],[G/L-Code]],Sonstiges[Datum der Scheckeinreichung],\">=\"&DATEVALUE(\" 1. \"&MonatlicheAusgabenZusammenfassung[[#Headers],[Juni]]&_xlfn.SINGLE(_JAHR)),Sonstiges[Datum der Scheckeinreichung],\"<=\"&I$4)","v":{"v":0,"d":"0.00 €"}},{"$f":"SUMIFS(AusgabenEinzelauflistung[Scheckbetrag],AusgabenEinzelauflistung[G/L-Code],MonatlicheAusgabenZusammenfassung[[#This Row],[G/L-Code]],AusgabenEinzelauflistung[Rechnungsdatum],\">=\"&J$3,AusgabenEinzelauflistung[Rechnungsdatum],\"<=\"&J$4)+SUMIFS(Sonstiges[Scheckbetrag],Sonstiges[G/L-Code],MonatlicheAusgabenZusammenfassung[[#This Row],[G/L-Code]],Sonstiges[Datum der Scheckeinreichung],\">=\"&DATEVALUE(\" 1. \"&MonatlicheAusgabenZusammenfassung[[#Headers],[Juli]]&_xlfn.SINGLE(_JAHR)),Sonstiges[Datum der Scheckeinreichung],\"<=\"&J$4)","v":{"v":0,"d":"0.00 €"}},{"$f":"SUMIFS(AusgabenEinzelauflistung[Scheckbetrag],AusgabenEinzelauflistung[G/L-Code],MonatlicheAusgabenZusammenfassung[[#This Row],[G/L-Code]],AusgabenEinzelauflistung[Rechnungsdatum],\">=\"&K$3,AusgabenEinzelauflistung[Rechnungsdatum],\"<=\"&K$4)+SUMIFS(Sonstiges[Scheckbetrag],Sonstiges[G/L-Code],MonatlicheAusgabenZusammenfassung[[#This Row],[G/L-Code]],Sonstiges[Datum der Scheckeinreichung],\">=\"&DATEVALUE(\" 1. \"&MonatlicheAusgabenZusammenfassung[[#Headers],[August]]&_xlfn.SINGLE(_JAHR)),Sonstiges[Datum der Scheckeinreichung],\"<=\"&K$4)","v":{"v":0,"d":"0.00 €"}},{"$f":"SUMIFS(AusgabenEinzelauflistung[Scheckbetrag],AusgabenEinzelauflistung[G/L-Code],MonatlicheAusgabenZusammenfassung[[#This Row],[G/L-Code]],AusgabenEinzelauflistung[Rechnungsdatum],\">=\"&L$3,AusgabenEinzelauflistung[Rechnungsdatum],\"<=\"&L$4)+SUMIFS(Sonstiges[Scheckbetrag],Sonstiges[G/L-Code],MonatlicheAusgabenZusammenfassung[[#This Row],[G/L-Code]],Sonstiges[Datum der Scheckeinreichung],\">=\"&DATEVALUE(\" 1. \"&MonatlicheAusgabenZusammenfassung[[#Headers],[September]]&_xlfn.SINGLE(_JAHR)),Sonstiges[Datum der Scheckeinreichung],\"<=\"&L$4)","v":{"v":0,"d":"0.00 €"}},{"$f":"SUMIFS(AusgabenEinzelauflistung[Scheckbetrag],AusgabenEinzelauflistung[G/L-Code],MonatlicheAusgabenZusammenfassung[[#This Row],[G/L-Code]],AusgabenEinzelauflistung[Rechnungsdatum],\">=\"&M$3,AusgabenEinzelauflistung[Rechnungsdatum],\"<=\"&M$4)+SUMIFS(Sonstiges[Scheckbetrag],Sonstiges[G/L-Code],MonatlicheAusgabenZusammenfassung[[#This Row],[G/L-Code]],Sonstiges[Datum der Scheckeinreichung],\">=\"&DATEVALUE(\" 1. \"&MonatlicheAusgabenZusammenfassung[[#Headers],[Oktober]]&_xlfn.SINGLE(_JAHR)),Sonstiges[Datum der Scheckeinreichung],\"<=\"&M$4)","v":{"v":0,"d":"0.00 €"}},{"$f":"SUMIFS(AusgabenEinzelauflistung[Scheckbetrag],AusgabenEinzelauflistung[G/L-Code],MonatlicheAusgabenZusammenfassung[[#This Row],[G/L-Code]],AusgabenEinzelauflistung[Rechnungsdatum],\">=\"&N$3,AusgabenEinzelauflistung[Rechnungsdatum],\"<=\"&N$4)+SUMIFS(Sonstiges[Scheckbetrag],Sonstiges[G/L-Code],MonatlicheAusgabenZusammenfassung[[#This Row],[G/L-Code]],Sonstiges[Datum der Scheckeinreichung],\">=\"&DATEVALUE(\" 1. \"&MonatlicheAusgabenZusammenfassung[[#Headers],[November]]&_xlfn.SINGLE(_JAHR)),Sonstiges[Datum der Scheckeinreichung],\"<=\"&N$4)","v":{"v":0,"d":"0.00 €"}},{"$f":"SUMIFS(AusgabenEinzelauflistung[Scheckbetrag],AusgabenEinzelauflistung[G/L-Code],MonatlicheAusgabenZusammenfassung[[#This Row],[G/L-Code]],AusgabenEinzelauflistung[Rechnungsdatum],\">=\"&O$3,AusgabenEinzelauflistung[Rechnungsdatum],\"<=\"&O$4)+SUMIFS(Sonstiges[Scheckbetrag],Sonstiges[G/L-Code],MonatlicheAusgabenZusammenfassung[[#This Row],[G/L-Code]],Sonstiges[Datum der Scheckeinreichung],\">=\"&DATEVALUE(\" 1. \"&MonatlicheAusgabenZusammenfassung[[#Headers],[Dezember]]&_xlfn.SINGLE(_JAHR)),Sonstiges[Datum der Scheckeinreichung],\"<=\"&O$4)","v":{"v":0,"d":"0.00 €"}},{"$f":"SUM(MonatlicheAusgabenZusammenfassung[[#This Row],[Januar]:[Dezember]])","v":{"v":0,"d":"0.00 €"}}]
[null,3000,"Drucker",{"$f":"SUMIFS(AusgabenEinzelauflistung[Scheckbetrag],AusgabenEinzelauflistung[G/L-Code],MonatlicheAusgabenZusammenfassung[[#This Row],[G/L-Code]],AusgabenEinzelauflistung[Rechnungsdatum],\">=\"&D$3,AusgabenEinzelauflistung[Rechnungsdatum],\"<=\"&D$4)+SUMIFS(Sonstiges[Scheckbetrag],Sonstiges[G/L-Code],MonatlicheAusgabenZusammenfassung[[#This Row],[G/L-Code]],Sonstiges[Datum der Scheckeinreichung],\">=\"&DATEVALUE(\" 1. \"&MonatlicheAusgabenZusammenfassung[[#Headers],[Januar]]&_xlfn.SINGLE(_JAHR)),Sonstiges[Datum der Scheckeinreichung],\"<=\"&D$4)","v":{"v":0,"d":"0.00 €"}},{"$f":"SUMIFS(AusgabenEinzelauflistung[Scheckbetrag],AusgabenEinzelauflistung[G/L-Code],MonatlicheAusgabenZusammenfassung[[#This Row],[G/L-Code]],AusgabenEinzelauflistung[Rechnungsdatum],\">=\"&E$3,AusgabenEinzelauflistung[Rechnungsdatum],\"<=\"&E$4)+SUMIFS(Sonstiges[Scheckbetrag],Sonstiges[G/L-Code],MonatlicheAusgabenZusammenfassung[[#This Row],[G/L-Code]],Sonstiges[Datum der Scheckeinreichung],\">=\"&DATEVALUE(\" 1. \"&MonatlicheAusgabenZusammenfassung[[#Headers],[Februar]]&_xlfn.SINGLE(_JAHR)),Sonstiges[Datum der Scheckeinreichung],\"<=\"&E$4)","v":{"v":0,"d":"0.00 €"}},{"$f":"SUMIFS(AusgabenEinzelauflistung[Scheckbetrag],AusgabenEinzelauflistung[G/L-Code],MonatlicheAusgabenZusammenfassung[[#This Row],[G/L-Code]],AusgabenEinzelauflistung[Rechnungsdatum],\">=\"&F$3,AusgabenEinzelauflistung[Rechnungsdatum],\"<=\"&F$4)+SUMIFS(Sonstiges[Scheckbetrag],Sonstiges[G/L-Code],MonatlicheAusgabenZusammenfassung[[#This Row],[G/L-Code]],Sonstiges[Datum der Scheckeinreichung],\">=\"&DATEVALUE(\" 1. \"&MonatlicheAusgabenZusammenfassung[[#Headers],[März]]&_xlfn.SINGLE(_JAHR)),Sonstiges[Datum der Scheckeinreichung],\"<=\"&F$4)","v":{"v":0,"d":"0.00 €"}},{"$f":"SUMIFS(AusgabenEinzelauflistung[Scheckbetrag],AusgabenEinzelauflistung[G/L-Code],MonatlicheAusgabenZusammenfassung[[#This Row],[G/L-Code]],AusgabenEinzelauflistung[Rechnungsdatum],\">=\"&G$3,AusgabenEinzelauflistung[Rechnungsdatum],\"<=\"&G$4)+SUMIFS(Sonstiges[Scheckbetrag],Sonstiges[G/L-Code],MonatlicheAusgabenZusammenfassung[[#This Row],[G/L-Code]],Sonstiges[Datum der Scheckeinreichung],\">=\"&DATEVALUE(\" 1. \"&MonatlicheAusgabenZusammenfassung[[#Headers],[April]]&_xlfn.SINGLE(_JAHR)),Sonstiges[Datum der Scheckeinreichung],\"<=\"&G$4)","v":{"v":0,"d":"0.00 €"}},{"$f":"SUMIFS(AusgabenEinzelauflistung[Scheckbetrag],AusgabenEinzelauflistung[G/L-Code],MonatlicheAusgabenZusammenfassung[[#This Row],[G/L-Code]],AusgabenEinzelauflistung[Rechnungsdatum],\">=\"&H$3,AusgabenEinzelauflistung[Rechnungsdatum],\"<=\"&H$4)+SUMIFS(Sonstiges[Scheckbetrag],Sonstiges[G/L-Code],MonatlicheAusgabenZusammenfassung[[#This Row],[G/L-Code]],Sonstiges[Datum der Scheckeinreichung],\">=\"&DATEVALUE(\" 1. \"&MonatlicheAusgabenZusammenfassung[[#Headers],[Mai]]&_xlfn.SINGLE(_JAHR)),Sonstiges[Datum der Scheckeinreichung],\"<=\"&H$4)","v":{"v":0,"d":"0.00 €"}},{"$f":"SUMIFS(AusgabenEinzelauflistung[Scheckbetrag],AusgabenEinzelauflistung[G/L-Code],MonatlicheAusgabenZusammenfassung[[#This Row],[G/L-Code]],AusgabenEinzelauflistung[Rechnungsdatum],\">=\"&I$3,AusgabenEinzelauflistung[Rechnungsdatum],\"<=\"&I$4)+SUMIFS(Sonstiges[Scheckbetrag],Sonstiges[G/L-Code],MonatlicheAusgabenZusammenfassung[[#This Row],[G/L-Code]],Sonstiges[Datum der Scheckeinreichung],\">=\"&DATEVALUE(\" 1. \"&MonatlicheAusgabenZusammenfassung[[#Headers],[Juni]]&_xlfn.SINGLE(_JAHR)),Sonstiges[Datum der Scheckeinreichung],\"<=\"&I$4)","v":{"v":0,"d":"0.00 €"}},{"$f":"SUMIFS(AusgabenEinzelauflistung[Scheckbetrag],AusgabenEinzelauflistung[G/L-Code],MonatlicheAusgabenZusammenfassung[[#This Row],[G/L-Code]],AusgabenEinzelauflistung[Rechnungsdatum],\">=\"&J$3,AusgabenEinzelauflistung[Rechnungsdatum],\"<=\"&J$4)+SUMIFS(Sonstiges[Scheckbetrag],Sonstiges[G/L-Code],MonatlicheAusgabenZusammenfassung[[#This Row],[G/L-Code]],Sonstiges[Datum der Scheckeinreichung],\">=\"&DATEVALUE(\" 1. \"&MonatlicheAusgabenZusammenfassung[[#Headers],[Juli]]&_xlfn.SINGLE(_JAHR)),Sonstiges[Datum der Scheckeinreichung],\"<=\"&J$4)","v":{"v":0,"d":"0.00 €"}},{"$f":"SUMIFS(AusgabenEinzelauflistung[Scheckbetrag],AusgabenEinzelauflistung[G/L-Code],MonatlicheAusgabenZusammenfassung[[#This Row],[G/L-Code]],AusgabenEinzelauflistung[Rechnungsdatum],\">=\"&K$3,AusgabenEinzelauflistung[Rechnungsdatum],\"<=\"&K$4)+SUMIFS(Sonstiges[Scheckbetrag],Sonstiges[G/L-Code],MonatlicheAusgabenZusammenfassung[[#This Row],[G/L-Code]],Sonstiges[Datum der Scheckeinreichung],\">=\"&DATEVALUE(\" 1. \"&MonatlicheAusgabenZusammenfassung[[#Headers],[August]]&_xlfn.SINGLE(_JAHR)),Sonstiges[Datum der Scheckeinreichung],\"<=\"&K$4)","v":{"v":0,"d":"0.00 €"}},{"$f":"SUMIFS(AusgabenEinzelauflistung[Scheckbetrag],AusgabenEinzelauflistung[G/L-Code],MonatlicheAusgabenZusammenfassung[[#This Row],[G/L-Code]],AusgabenEinzelauflistung[Rechnungsdatum],\">=\"&L$3,AusgabenEinzelauflistung[Rechnungsdatum],\"<=\"&L$4)+SUMIFS(Sonstiges[Scheckbetrag],Sonstiges[G/L-Code],MonatlicheAusgabenZusammenfassung[[#This Row],[G/L-Code]],Sonstiges[Datum der Scheckeinreichung],\">=\"&DATEVALUE(\" 1. \"&MonatlicheAusgabenZusammenfassung[[#Headers],[September]]&_xlfn.SINGLE(_JAHR)),Sonstiges[Datum der Scheckeinreichung],\"<=\"&L$4)","v":{"v":0,"d":"0.00 €"}},{"$f":"SUMIFS(AusgabenEinzelauflistung[Scheckbetrag],AusgabenEinzelauflistung[G/L-Code],MonatlicheAusgabenZusammenfassung[[#This Row],[G/L-Code]],AusgabenEinzelauflistung[Rechnungsdatum],\">=\"&M$3,AusgabenEinzelauflistung[Rechnungsdatum],\"<=\"&M$4)+SUMIFS(Sonstiges[Scheckbetrag],Sonstiges[G/L-Code],MonatlicheAusgabenZusammenfassung[[#This Row],[G/L-Code]],Sonstiges[Datum der Scheckeinreichung],\">=\"&DATEVALUE(\" 1. \"&MonatlicheAusgabenZusammenfassung[[#Headers],[Oktober]]&_xlfn.SINGLE(_JAHR)),Sonstiges[Datum der Scheckeinreichung],\"<=\"&M$4)","v":{"v":0,"d":"0.00 €"}},{"$f":"SUMIFS(AusgabenEinzelauflistung[Scheckbetrag],AusgabenEinzelauflistung[G/L-Code],MonatlicheAusgabenZusammenfassung[[#This Row],[G/L-Code]],AusgabenEinzelauflistung[Rechnungsdatum],\">=\"&N$3,AusgabenEinzelauflistung[Rechnungsdatum],\"<=\"&N$4)+SUMIFS(Sonstiges[Scheckbetrag],Sonstiges[G/L-Code],MonatlicheAusgabenZusammenfassung[[#This Row],[G/L-Code]],Sonstiges[Datum der Scheckeinreichung],\">=\"&DATEVALUE(\" 1. \"&MonatlicheAusgabenZusammenfassung[[#Headers],[November]]&_xlfn.SINGLE(_JAHR)),Sonstiges[Datum der Scheckeinreichung],\"<=\"&N$4)","v":{"v":0,"d":"0.00 €"}},{"$f":"SUMIFS(AusgabenEinzelauflistung[Scheckbetrag],AusgabenEinzelauflistung[G/L-Code],MonatlicheAusgabenZusammenfassung[[#This Row],[G/L-Code]],AusgabenEinzelauflistung[Rechnungsdatum],\">=\"&O$3,AusgabenEinzelauflistung[Rechnungsdatum],\"<=\"&O$4)+SUMIFS(Sonstiges[Scheckbetrag],Sonstiges[G/L-Code],MonatlicheAusgabenZusammenfassung[[#This Row],[G/L-Code]],Sonstiges[Datum der Scheckeinreichung],\">=\"&DATEVALUE(\" 1. \"&MonatlicheAusgabenZusammenfassung[[#Headers],[Dezember]]&_xlfn.SINGLE(_JAHR)),Sonstiges[Datum der Scheckeinreichung],\"<=\"&O$4)","v":{"v":0,"d":"0.00 €"}},{"$f":"SUM(MonatlicheAusgabenZusammenfassung[[#This Row],[Januar]:[Dezember]])","v":{"v":0,"d":"0.00 €"}}]
[null,4000,"Server-Kosten",{"$f":"SUMIFS(AusgabenEinzelauflistung[Scheckbetrag],AusgabenEinzelauflistung[G/L-Code],MonatlicheAusgabenZusammenfassung[[#This Row],[G/L-Code]],AusgabenEinzelauflistung[Rechnungsdatum],\">=\"&D$3,AusgabenEinzelauflistung[Rechnungsdatum],\"<=\"&D$4)+SUMIFS(Sonstiges[Scheckbetrag],Sonstiges[G/L-Code],MonatlicheAusgabenZusammenfassung[[#This Row],[G/L-Code]],Sonstiges[Datum der Scheckeinreichung],\">=\"&DATEVALUE(\" 1. \"&MonatlicheAusgabenZusammenfassung[[#Headers],[Januar]]&_xlfn.SINGLE(_JAHR)),Sonstiges[Datum der Scheckeinreichung],\"<=\"&D$4)","v":{"v":0,"d":"0.00 €"}},{"$f":"SUMIFS(AusgabenEinzelauflistung[Scheckbetrag],AusgabenEinzelauflistung[G/L-Code],MonatlicheAusgabenZusammenfassung[[#This Row],[G/L-Code]],AusgabenEinzelauflistung[Rechnungsdatum],\">=\"&E$3,AusgabenEinzelauflistung[Rechnungsdatum],\"<=\"&E$4)+SUMIFS(Sonstiges[Scheckbetrag],Sonstiges[G/L-Code],MonatlicheAusgabenZusammenfassung[[#This Row],[G/L-Code]],Sonstiges[Datum der Scheckeinreichung],\">=\"&DATEVALUE(\" 1. \"&MonatlicheAusgabenZusammenfassung[[#Headers],[Februar]]&_xlfn.SINGLE(_JAHR)),Sonstiges[Datum der Scheckeinreichung],\"<=\"&E$4)","v":{"v":0,"d":"0.00 €"}},{"$f":"SUMIFS(AusgabenEinzelauflistung[Scheckbetrag],AusgabenEinzelauflistung[G/L-Code],MonatlicheAusgabenZusammenfassung[[#This Row],[G/L-Code]],AusgabenEinzelauflistung[Rechnungsdatum],\">=\"&F$3,AusgabenEinzelauflistung[Rechnungsdatum],\"<=\"&F$4)+SUMIFS(Sonstiges[Scheckbetrag],Sonstiges[G/L-Code],MonatlicheAusgabenZusammenfassung[[#This Row],[G/L-Code]],Sonstiges[Datum der Scheckeinreichung],\">=\"&DATEVALUE(\" 1. \"&MonatlicheAusgabenZusammenfassung[[#Headers],[März]]&_xlfn.SINGLE(_JAHR)),Sonstiges[Datum der Scheckeinreichung],\"<=\"&F$4)","v":{"v":0,"d":"0.00 €"}},{"$f":"SUMIFS(AusgabenEinzelauflistung[Scheckbetrag],AusgabenEinzelauflistung[G/L-Code],MonatlicheAusgabenZusammenfassung[[#This Row],[G/L-Code]],AusgabenEinzelauflistung[Rechnungsdatum],\">=\"&G$3,AusgabenEinzelauflistung[Rechnungsdatum],\"<=\"&G$4)+SUMIFS(Sonstiges[Scheckbetrag],Sonstiges[G/L-Code],MonatlicheAusgabenZusammenfassung[[#This Row],[G/L-Code]],Sonstiges[Datum der Scheckeinreichung],\">=\"&DATEVALUE(\" 1. \"&MonatlicheAusgabenZusammenfassung[[#Headers],[April]]&_xlfn.SINGLE(_JAHR)),Sonstiges[Datum der Scheckeinreichung],\"<=\"&G$4)","v":{"v":0,"d":"0.00 €"}},{"$f":"SUMIFS(AusgabenEinzelauflistung[Scheckbetrag],AusgabenEinzelauflistung[G/L-Code],MonatlicheAusgabenZusammenfassung[[#This Row],[G/L-Code]],AusgabenEinzelauflistung[Rechnungsdatum],\">=\"&H$3,AusgabenEinzelauflistung[Rechnungsdatum],\"<=\"&H$4)+SUMIFS(Sonstiges[Scheckbetrag],Sonstiges[G/L-Code],MonatlicheAusgabenZusammenfassung[[#This Row],[G/L-Code]],Sonstiges[Datum der Scheckeinreichung],\">=\"&DATEVALUE(\" 1. \"&MonatlicheAusgabenZusammenfassung[[#Headers],[Mai]]&_xlfn.SINGLE(_JAHR)),Sonstiges[Datum der Scheckeinreichung],\"<=\"&H$4)","v":{"v":0,"d":"0.00 €"}},{"$f":"SUMIFS(AusgabenEinzelauflistung[Scheckbetrag],AusgabenEinzelauflistung[G/L-Code],MonatlicheAusgabenZusammenfassung[[#This Row],[G/L-Code]],AusgabenEinzelauflistung[Rechnungsdatum],\">=\"&I$3,AusgabenEinzelauflistung[Rechnungsdatum],\"<=\"&I$4)+SUMIFS(Sonstiges[Scheckbetrag],Sonstiges[G/L-Code],MonatlicheAusgabenZusammenfassung[[#This Row],[G/L-Code]],Sonstiges[Datum der Scheckeinreichung],\">=\"&DATEVALUE(\" 1. \"&MonatlicheAusgabenZusammenfassung[[#Headers],[Juni]]&_xlfn.SINGLE(_JAHR)),Sonstiges[Datum der Scheckeinreichung],\"<=\"&I$4)","v":{"v":0,"d":"0.00 €"}},{"$f":"SUMIFS(AusgabenEinzelauflistung[Scheckbetrag],AusgabenEinzelauflistung[G/L-Code],MonatlicheAusgabenZusammenfassung[[#This Row],[G/L-Code]],AusgabenEinzelauflistung[Rechnungsdatum],\">=\"&J$3,AusgabenEinzelauflistung[Rechnungsdatum],\"<=\"&J$4)+SUMIFS(Sonstiges[Scheckbetrag],Sonstiges[G/L-Code],MonatlicheAusgabenZusammenfassung[[#This Row],[G/L-Code]],Sonstiges[Datum der Scheckeinreichung],\">=\"&DATEVALUE(\" 1. \"&MonatlicheAusgabenZusammenfassung[[#Headers],[Juli]]&_xlfn.SINGLE(_JAHR)),Sonstiges[Datum der Scheckeinreichung],\"<=\"&J$4)","v":{"v":0,"d":"0.00 €"}},{"$f":"SUMIFS(AusgabenEinzelauflistung[Scheckbetrag],AusgabenEinzelauflistung[G/L-Code],MonatlicheAusgabenZusammenfassung[[#This Row],[G/L-Code]],AusgabenEinzelauflistung[Rechnungsdatum],\">=\"&K$3,AusgabenEinzelauflistung[Rechnungsdatum],\"<=\"&K$4)+SUMIFS(Sonstiges[Scheckbetrag],Sonstiges[G/L-Code],MonatlicheAusgabenZusammenfassung[[#This Row],[G/L-Code]],Sonstiges[Datum der Scheckeinreichung],\">=\"&DATEVALUE(\" 1. \"&MonatlicheAusgabenZusammenfassung[[#Headers],[August]]&_xlfn.SINGLE(_JAHR)),Sonstiges[Datum der Scheckeinreichung],\"<=\"&K$4)","v":{"v":0,"d":"0.00 €"}},{"$f":"SUMIFS(AusgabenEinzelauflistung[Scheckbetrag],AusgabenEinzelauflistung[G/L-Code],MonatlicheAusgabenZusammenfassung[[#This Row],[G/L-Code]],AusgabenEinzelauflistung[Rechnungsdatum],\">=\"&L$3,AusgabenEinzelauflistung[Rechnungsdatum],\"<=\"&L$4)+SUMIFS(Sonstiges[Scheckbetrag],Sonstiges[G/L-Code],MonatlicheAusgabenZusammenfassung[[#This Row],[G/L-Code]],Sonstiges[Datum der Scheckeinreichung],\">=\"&DATEVALUE(\" 1. \"&MonatlicheAusgabenZusammenfassung[[#Headers],[September]]&_xlfn.SINGLE(_JAHR)),Sonstiges[Datum der Scheckeinreichung],\"<=\"&L$4)","v":{"v":0,"d":"0.00 €"}},{"$f":"SUMIFS(AusgabenEinzelauflistung[Scheckbetrag],AusgabenEinzelauflistung[G/L-Code],MonatlicheAusgabenZusammenfassung[[#This Row],[G/L-Code]],AusgabenEinzelauflistung[Rechnungsdatum],\">=\"&M$3,AusgabenEinzelauflistung[Rechnungsdatum],\"<=\"&M$4)+SUMIFS(Sonstiges[Scheckbetrag],Sonstiges[G/L-Code],MonatlicheAusgabenZusammenfassung[[#This Row],[G/L-Code]],Sonstiges[Datum der Scheckeinreichung],\">=\"&DATEVALUE(\" 1. \"&MonatlicheAusgabenZusammenfassung[[#Headers],[Oktober]]&_xlfn.SINGLE(_JAHR)),Sonstiges[Datum der Scheckeinreichung],\"<=\"&M$4)","v":{"v":0,"d":"0.00 €"}},{"$f":"SUMIFS(AusgabenEinzelauflistung[Scheckbetrag],AusgabenEinzelauflistung[G/L-Code],MonatlicheAusgabenZusammenfassung[[#This Row],[G/L-Code]],AusgabenEinzelauflistung[Rechnungsdatum],\">=\"&N$3,AusgabenEinzelauflistung[Rechnungsdatum],\"<=\"&N$4)+SUMIFS(Sonstiges[Scheckbetrag],Sonstiges[G/L-Code],MonatlicheAusgabenZusammenfassung[[#This Row],[G/L-Code]],Sonstiges[Datum der Scheckeinreichung],\">=\"&DATEVALUE(\" 1. \"&MonatlicheAusgabenZusammenfassung[[#Headers],[November]]&_xlfn.SINGLE(_JAHR)),Sonstiges[Datum der Scheckeinreichung],\"<=\"&N$4)","v":{"v":0,"d":"0.00 €"}},{"$f":"SUMIFS(AusgabenEinzelauflistung[Scheckbetrag],AusgabenEinzelauflistung[G/L-Code],MonatlicheAusgabenZusammenfassung[[#This Row],[G/L-Code]],AusgabenEinzelauflistung[Rechnungsdatum],\">=\"&O$3,AusgabenEinzelauflistung[Rechnungsdatum],\"<=\"&O$4)+SUMIFS(Sonstiges[Scheckbetrag],Sonstiges[G/L-Code],MonatlicheAusgabenZusammenfassung[[#This Row],[G/L-Code]],Sonstiges[Datum der Scheckeinreichung],\">=\"&DATEVALUE(\" 1. \"&MonatlicheAusgabenZusammenfassung[[#Headers],[Dezember]]&_xlfn.SINGLE(_JAHR)),Sonstiges[Datum der Scheckeinreichung],\"<=\"&O$4)","v":{"v":0,"d":"0.00 €"}},{"$f":"SUM(MonatlicheAusgabenZusammenfassung[[#This Row],[Januar]:[Dezember]])","v":{"v":0,"d":"0.00 €"}}]
[null,5000,"Betriebsmittel",{"$f":"SUMIFS(AusgabenEinzelauflistung[Scheckbetrag],AusgabenEinzelauflistung[G/L-Code],MonatlicheAusgabenZusammenfassung[[#This Row],[G/L-Code]],AusgabenEinzelauflistung[Rechnungsdatum],\">=\"&D$3,AusgabenEinzelauflistung[Rechnungsdatum],\"<=\"&D$4)+SUMIFS(Sonstiges[Scheckbetrag],Sonstiges[G/L-Code],MonatlicheAusgabenZusammenfassung[[#This Row],[G/L-Code]],Sonstiges[Datum der Scheckeinreichung],\">=\"&DATEVALUE(\" 1. \"&MonatlicheAusgabenZusammenfassung[[#Headers],[Januar]]&_xlfn.SINGLE(_JAHR)),Sonstiges[Datum der Scheckeinreichung],\"<=\"&D$4)","v":{"v":0,"d":"0.00 €"}},{"$f":"SUMIFS(AusgabenEinzelauflistung[Scheckbetrag],AusgabenEinzelauflistung[G/L-Code],MonatlicheAusgabenZusammenfassung[[#This Row],[G/L-Code]],AusgabenEinzelauflistung[Rechnungsdatum],\">=\"&E$3,AusgabenEinzelauflistung[Rechnungsdatum],\"<=\"&E$4)+SUMIFS(Sonstiges[Scheckbetrag],Sonstiges[G/L-Code],MonatlicheAusgabenZusammenfassung[[#This Row],[G/L-Code]],Sonstiges[Datum der Scheckeinreichung],\">=\"&DATEVALUE(\" 1. \"&MonatlicheAusgabenZusammenfassung[[#Headers],[Februar]]&_xlfn.SINGLE(_JAHR)),Sonstiges[Datum der Scheckeinreichung],\"<=\"&E$4)","v":{"v":0,"d":"0.00 €"}},{"$f":"SUMIFS(AusgabenEinzelauflistung[Scheckbetrag],AusgabenEinzelauflistung[G/L-Code],MonatlicheAusgabenZusammenfassung[[#This Row],[G/L-Code]],AusgabenEinzelauflistung[Rechnungsdatum],\">=\"&F$3,AusgabenEinzelauflistung[Rechnungsdatum],\"<=\"&F$4)+SUMIFS(Sonstiges[Scheckbetrag],Sonstiges[G/L-Code],MonatlicheAusgabenZusammenfassung[[#This Row],[G/L-Code]],Sonstiges[Datum der Scheckeinreichung],\">=\"&DATEVALUE(\" 1. \"&MonatlicheAusgabenZusammenfassung[[#Headers],[März]]&_xlfn.SINGLE(_JAHR)),Sonstiges[Datum der Scheckeinreichung],\"<=\"&F$4)","v":{"v":0,"d":"0.00 €"}},{"$f":"SUMIFS(AusgabenEinzelauflistung[Scheckbetrag],AusgabenEinzelauflistung[G/L-Code],MonatlicheAusgabenZusammenfassung[[#This Row],[G/L-Code]],AusgabenEinzelauflistung[Rechnungsdatum],\">=\"&G$3,AusgabenEinzelauflistung[Rechnungsdatum],\"<=\"&G$4)+SUMIFS(Sonstiges[Scheckbetrag],Sonstiges[G/L-Code],MonatlicheAusgabenZusammenfassung[[#This Row],[G/L-Code]],Sonstiges[Datum der Scheckeinreichung],\">=\"&DATEVALUE(\" 1. \"&MonatlicheAusgabenZusammenfassung[[#Headers],[April]]&_xlfn.SINGLE(_JAHR)),Sonstiges[Datum der Scheckeinreichung],\"<=\"&G$4)","v":{"v":0,"d":"0.00 €"}},{"$f":"SUMIFS(AusgabenEinzelauflistung[Scheckbetrag],AusgabenEinzelauflistung[G/L-Code],MonatlicheAusgabenZusammenfassung[[#This Row],[G/L-Code]],AusgabenEinzelauflistung[Rechnungsdatum],\">=\"&H$3,AusgabenEinzelauflistung[Rechnungsdatum],\"<=\"&H$4)+SUMIFS(Sonstiges[Scheckbetrag],Sonstiges[G/L-Code],MonatlicheAusgabenZusammenfassung[[#This Row],[G/L-Code]],Sonstiges[Datum der Scheckeinreichung],\">=\"&DATEVALUE(\" 1. \"&MonatlicheAusgabenZusammenfassung[[#Headers],[Mai]]&_xlfn.SINGLE(_JAHR)),Sonstiges[Datum der Scheckeinreichung],\"<=\"&H$4)","v":{"v":0,"d":"0.00 €"}},{"$f":"SUMIFS(AusgabenEinzelauflistung[Scheckbetrag],AusgabenEinzelauflistung[G/L-Code],MonatlicheAusgabenZusammenfassung[[#This Row],[G/L-Code]],AusgabenEinzelauflistung[Rechnungsdatum],\">=\"&I$3,AusgabenEinzelauflistung[Rechnungsdatum],\"<=\"&I$4)+SUMIFS(Sonstiges[Scheckbetrag],Sonstiges[G/L-Code],MonatlicheAusgabenZusammenfassung[[#This Row],[G/L-Code]],Sonstiges[Datum der Scheckeinreichung],\">=\"&DATEVALUE(\" 1. \"&MonatlicheAusgabenZusammenfassung[[#Headers],[Juni]]&_xlfn.SINGLE(_JAHR)),Sonstiges[Datum der Scheckeinreichung],\"<=\"&I$4)","v":{"v":0,"d":"0.00 €"}},{"$f":"SUMIFS(AusgabenEinzelauflistung[Scheckbetrag],AusgabenEinzelauflistung[G/L-Code],MonatlicheAusgabenZusammenfassung[[#This Row],[G/L-Code]],AusgabenEinzelauflistung[Rechnungsdatum],\">=\"&J$3,AusgabenEinzelauflistung[Rechnungsdatum],\"<=\"&J$4)+SUMIFS(Sonstiges[Scheckbetrag],Sonstiges[G/L-Code],MonatlicheAusgabenZusammenfassung[[#This Row],[G/L-Code]],Sonstiges[Datum der Scheckeinreichung],\">=\"&DATEVALUE(\" 1. \"&MonatlicheAusgabenZusammenfassung[[#Headers],[Juli]]&_xlfn.SINGLE(_JAHR)),Sonstiges[Datum der Scheckeinreichung],\"<=\"&J$4)","v":{"v":0,"d":"0.00 €"}},{"$f":"SUMIFS(AusgabenEinzelauflistung[Scheckbetrag],AusgabenEinzelauflistung[G/L-Code],MonatlicheAusgabenZusammenfassung[[#This Row],[G/L-Code]],AusgabenEinzelauflistung[Rechnungsdatum],\">=\"&K$3,AusgabenEinzelauflistung[Rechnungsdatum],\"<=\"&K$4)+SUMIFS(Sonstiges[Scheckbetrag],Sonstiges[G/L-Code],MonatlicheAusgabenZusammenfassung[[#This Row],[G/L-Code]],Sonstiges[Datum der Scheckeinreichung],\">=\"&DATEVALUE(\" 1. \"&MonatlicheAusgabenZusammenfassung[[#Headers],[August]]&_xlfn.SINGLE(_JAHR)),Sonstiges[Datum der Scheckeinreichung],\"<=\"&K$4)","v":{"v":0,"d":"0.00 €"}},{"$f":"SUMIFS(AusgabenEinzelauflistung[Scheckbetrag],AusgabenEinzelauflistung[G/L-Code],MonatlicheAusgabenZusammenfassung[[#This Row],[G/L-Code]],AusgabenEinzelauflistung[Rechnungsdatum],\">=\"&L$3,AusgabenEinzelauflistung[Rechnungsdatum],\"<=\"&L$4)+SUMIFS(Sonstiges[Scheckbetrag],Sonstiges[G/L-Code],MonatlicheAusgabenZusammenfassung[[#This Row],[G/L-Code]],Sonstiges[Datum der Scheckeinreichung],\">=\"&DATEVALUE(\" 1. \"&MonatlicheAusgabenZusammenfassung[[#Headers],[September]]&_xlfn.SINGLE(_JAHR)),Sonstiges[Datum der Scheckeinreichung],\"<=\"&L$4)","v":{"v":0,"d":"0.00 €"}},{"$f":"SUMIFS(AusgabenEinzelauflistung[Scheckbetrag],AusgabenEinzelauflistung[G/L-Code],MonatlicheAusgabenZusammenfassung[[#This Row],[G/L-Code]],AusgabenEinzelauflistung[Rechnungsdatum],\">=\"&M$3,AusgabenEinzelauflistung[Rechnungsdatum],\"<=\"&M$4)+SUMIFS(Sonstiges[Scheckbetrag],Sonstiges[G/L-Code],MonatlicheAusgabenZusammenfassung[[#This Row],[G/L-Code]],Sonstiges[Datum der Scheckeinreichung],\">=\"&DATEVALUE(\" 1. \"&MonatlicheAusgabenZusammenfassung[[#Headers],[Oktober]]&_xlfn.SINGLE(_JAHR)),Sonstiges[Datum der Scheckeinreichung],\"<=\"&M$4)","v":{"v":0,"d":"0.00 €"}},{"$f":"SUMIFS(AusgabenEinzelauflistung[Scheckbetrag],AusgabenEinzelauflistung[G/L-Code],MonatlicheAusgabenZusammenfassung[[#This Row],[G/L-Code]],AusgabenEinzelauflistung[Rechnungsdatum],\">=\"&N$3,AusgabenEinzelauflistung[Rechnungsdatum],\"<=\"&N$4)+SUMIFS(Sonstiges[Scheckbetrag],Sonstiges[G/L-Code],MonatlicheAusgabenZusammenfassung[[#This Row],[G/L-Code]],Sonstiges[Datum der Scheckeinreichung],\">=\"&DATEVALUE(\" 1. \"&MonatlicheAusgabenZusammenfassung[[#Headers],[November]]&_xlfn.SINGLE(_JAHR)),Sonstiges[Datum der Scheckeinreichung],\"<=\"&N$4)","v":{"v":0,"d":"0.00 €"}},{"$f":"SUMIFS(AusgabenEinzelauflistung[Scheckbetrag],AusgabenEinzelauflistung[G/L-Code],MonatlicheAusgabenZusammenfassung[[#This Row],[G/L-Code]],AusgabenEinzelauflistung[Rechnungsdatum],\">=\"&O$3,AusgabenEinzelauflistung[Rechnungsdatum],\"<=\"&O$4)+SUMIFS(Sonstiges[Scheckbetrag],Sonstiges[G/L-Code],MonatlicheAusgabenZusammenfassung[[#This Row],[G/L-Code]],Sonstiges[Datum der Scheckeinreichung],\">=\"&DATEVALUE(\" 1. \"&MonatlicheAusgabenZusammenfassung[[#Headers],[Dezember]]&_xlfn.SINGLE(_JAHR)),Sonstiges[Datum der Scheckeinreichung],\"<=\"&O$4)","v":{"v":0,"d":"0.00 €"}},{"$f":"SUM(MonatlicheAusgabenZusammenfassung[[#This Row],[Januar]:[Dezember]])","v":{"v":0,"d":"0.00 €"}}]
[null,6000,"Client-Ausgaben",{"$f":"SUMIFS(AusgabenEinzelauflistung[Scheckbetrag],AusgabenEinzelauflistung[G/L-Code],MonatlicheAusgabenZusammenfassung[[#This Row],[G/L-Code]],AusgabenEinzelauflistung[Rechnungsdatum],\">=\"&D$3,AusgabenEinzelauflistung[Rechnungsdatum],\"<=\"&D$4)+SUMIFS(Sonstiges[Scheckbetrag],Sonstiges[G/L-Code],MonatlicheAusgabenZusammenfassung[[#This Row],[G/L-Code]],Sonstiges[Datum der Scheckeinreichung],\">=\"&DATEVALUE(\" 1. \"&MonatlicheAusgabenZusammenfassung[[#Headers],[Januar]]&_xlfn.SINGLE(_JAHR)),Sonstiges[Datum der Scheckeinreichung],\"<=\"&D$4)","v":{"v":0,"d":"0.00 €"}},{"$f":"SUMIFS(AusgabenEinzelauflistung[Scheckbetrag],AusgabenEinzelauflistung[G/L-Code],MonatlicheAusgabenZusammenfassung[[#This Row],[G/L-Code]],AusgabenEinzelauflistung[Rechnungsdatum],\">=\"&E$3,AusgabenEinzelauflistung[Rechnungsdatum],\"<=\"&E$4)+SUMIFS(Sonstiges[Scheckbetrag],Sonstiges[G/L-Code],MonatlicheAusgabenZusammenfassung[[#This Row],[G/L-Code]],Sonstiges[Datum der Scheckeinreichung],\">=\"&DATEVALUE(\" 1. \"&MonatlicheAusgabenZusammenfassung[[#Headers],[Februar]]&_xlfn.SINGLE(_JAHR)),Sonstiges[Datum der Scheckeinreichung],\"<=\"&E$4)","v":{"v":0,"d":"0.00 €"}},{"$f":"SUMIFS(AusgabenEinzelauflistung[Scheckbetrag],AusgabenEinzelauflistung[G/L-Code],MonatlicheAusgabenZusammenfassung[[#This Row],[G/L-Code]],AusgabenEinzelauflistung[Rechnungsdatum],\">=\"&F$3,AusgabenEinzelauflistung[Rechnungsdatum],\"<=\"&F$4)+SUMIFS(Sonstiges[Scheckbetrag],Sonstiges[G/L-Code],MonatlicheAusgabenZusammenfassung[[#This Row],[G/L-Code]],Sonstiges[Datum der Scheckeinreichung],\">=\"&DATEVALUE(\" 1. \"&MonatlicheAusgabenZusammenfassung[[#Headers],[März]]&_xlfn.SINGLE(_JAHR)),Sonstiges[Datum der Scheckeinreichung],\"<=\"&F$4)","v":{"v":0,"d":"0.00 €"}},{"$f":"SUMIFS(AusgabenEinzelauflistung[Scheckbetrag],AusgabenEinzelauflistung[G/L-Code],MonatlicheAusgabenZusammenfassung[[#This Row],[G/L-Code]],AusgabenEinzelauflistung[Rechnungsdatum],\">=\"&G$3,AusgabenEinzelauflistung[Rechnungsdatum],\"<=\"&G$4)+SUMIFS(Sonstiges[Scheckbetrag],Sonstiges[G/L-Code],MonatlicheAusgabenZusammenfassung[[#This Row],[G/L-Code]],Sonstiges[Datum der Scheckeinreichung],\">=\"&DATEVALUE(\" 1. \"&MonatlicheAusgabenZusammenfassung[[#Headers],[April]]&_xlfn.SINGLE(_JAHR)),Sonstiges[Datum der Scheckeinreichung],\"<=\"&G$4)","v":{"v":0,"d":"0.00 €"}},{"$f":"SUMIFS(AusgabenEinzelauflistung[Scheckbetrag],AusgabenEinzelauflistung[G/L-Code],MonatlicheAusgabenZusammenfassung[[#This Row],[G/L-Code]],AusgabenEinzelauflistung[Rechnungsdatum],\">=\"&H$3,AusgabenEinzelauflistung[Rechnungsdatum],\"<=\"&H$4)+SUMIFS(Sonstiges[Scheckbetrag],Sonstiges[G/L-Code],MonatlicheAusgabenZusammenfassung[[#This Row],[G/L-Code]],Sonstiges[Datum der Scheckeinreichung],\">=\"&DATEVALUE(\" 1. \"&MonatlicheAusgabenZusammenfassung[[#Headers],[Mai]]&_xlfn.SINGLE(_JAHR)),Sonstiges[Datum der Scheckeinreichung],\"<=\"&H$4)","v":{"v":0,"d":"0.00 €"}},{"$f":"SUMIFS(AusgabenEinzelauflistung[Scheckbetrag],AusgabenEinzelauflistung[G/L-Code],MonatlicheAusgabenZusammenfassung[[#This Row],[G/L-Code]],AusgabenEinzelauflistung[Rechnungsdatum],\">=\"&I$3,AusgabenEinzelauflistung[Rechnungsdatum],\"<=\"&I$4)+SUMIFS(Sonstiges[Scheckbetrag],Sonstiges[G/L-Code],MonatlicheAusgabenZusammenfassung[[#This Row],[G/L-Code]],Sonstiges[Datum der Scheckeinreichung],\">=\"&DATEVALUE(\" 1. \"&MonatlicheAusgabenZusammenfassung[[#Headers],[Juni]]&_xlfn.SINGLE(_JAHR)),Sonstiges[Datum der Scheckeinreichung],\"<=\"&I$4)","v":{"v":0,"d":"0.00 €"}},{"$f":"SUMIFS(AusgabenEinzelauflistung[Scheckbetrag],AusgabenEinzelauflistung[G/L-Code],MonatlicheAusgabenZusammenfassung[[#This Row],[G/L-Code]],AusgabenEinzelauflistung[Rechnungsdatum],\">=\"&J$3,AusgabenEinzelauflistung[Rechnungsdatum],\"<=\"&J$4)+SUMIFS(Sonstiges[Scheckbetrag],Sonstiges[G/L-Code],MonatlicheAusgabenZusammenfassung[[#This Row],[G/L-Code]],Sonstiges[Datum der Scheckeinreichung],\">=\"&DATEVALUE(\" 1. \"&MonatlicheAusgabenZusammenfassung[[#Headers],[Juli]]&_xlfn.SINGLE(_JAHR)),Sonstiges[Datum der Scheckeinreichung],\"<=\"&J$4)","v":{"v":0,"d":"0.00 €"}},{"$f":"SUMIFS(AusgabenEinzelauflistung[Scheckbetrag],AusgabenEinzelauflistung[G/L-Code],MonatlicheAusgabenZusammenfassung[[#This Row],[G/L-Code]],AusgabenEinzelauflistung[Rechnungsdatum],\">=\"&K$3,AusgabenEinzelauflistung[Rechnungsdatum],\"<=\"&K$4)+SUMIFS(Sonstiges[Scheckbetrag],Sonstiges[G/L-Code],MonatlicheAusgabenZusammenfassung[[#This Row],[G/L-Code]],Sonstiges[Datum der Scheckeinreichung],\">=\"&DATEVALUE(\" 1. \"&MonatlicheAusgabenZusammenfassung[[#Headers],[August]]&_xlfn.SINGLE(_JAHR)),Sonstiges[Datum der Scheckeinreichung],\"<=\"&K$4)","v":{"v":0,"d":"0.00 €"}},{"$f":"SUMIFS(AusgabenEinzelauflistung[Scheckbetrag],AusgabenEinzelauflistung[G/L-Code],MonatlicheAusgabenZusammenfassung[[#This Row],[G/L-Code]],AusgabenEinzelauflistung[Rechnungsdatum],\">=\"&L$3,AusgabenEinzelauflistung[Rechnungsdatum],\"<=\"&L$4)+SUMIFS(Sonstiges[Scheckbetrag],Sonstiges[G/L-Code],MonatlicheAusgabenZusammenfassung[[#This Row],[G/L-Code]],Sonstiges[Datum der Scheckeinreichung],\">=\"&DATEVALUE(\" 1. \"&MonatlicheAusgabenZusammenfassung[[#Headers],[September]]&_xlfn.SINGLE(_JAHR)),Sonstiges[Datum der Scheckeinreichung],\"<=\"&L$4)","v":{"v":0,"d":"0.00 €"}},{"$f":"SUMIFS(AusgabenEinzelauflistung[Scheckbetrag],AusgabenEinzelauflistung[G/L-Code],MonatlicheAusgabenZusammenfassung[[#This Row],[G/L-Code]],AusgabenEinzelauflistung[Rechnungsdatum],\">=\"&M$3,AusgabenEinzelauflistung[Rechnungsdatum],\"<=\"&M$4)+SUMIFS(Sonstiges[Scheckbetrag],Sonstiges[G/L-Code],MonatlicheAusgabenZusammenfassung[[#This Row],[G/L-Code]],Sonstiges[Datum der Scheckeinreichung],\">=\"&DATEVALUE(\" 1. \"&MonatlicheAusgabenZusammenfassung[[#Headers],[Oktober]]&_xlfn.SINGLE(_JAHR)),Sonstiges[Datum der Scheckeinreichung],\"<=\"&M$4)","v":{"v":0,"d":"0.00 €"}},{"$f":"SUMIFS(AusgabenEinzelauflistung[Scheckbetrag],AusgabenEinzelauflistung[G/L-Code],MonatlicheAusgabenZusammenfassung[[#This Row],[G/L-Code]],AusgabenEinzelauflistung[Rechnungsdatum],\">=\"&N$3,AusgabenEinzelauflistung[Rechnungsdatum],\"<=\"&N$4)+SUMIFS(Sonstiges[Scheckbetrag],Sonstiges[G/L-Code],MonatlicheAusgabenZusammenfassung[[#This Row],[G/L-Code]],Sonstiges[Datum der Scheckeinreichung],\">=\"&DATEVALUE(\" 1. \"&MonatlicheAusgabenZusammenfassung[[#Headers],[November]]&_xlfn.SINGLE(_JAHR)),Sonstiges[Datum der Scheckeinreichung],\"<=\"&N$4)","v":{"v":0,"d":"0.00 €"}},{"$f":"SUMIFS(AusgabenEinzelauflistung[Scheckbetrag],AusgabenEinzelauflistung[G/L-Code],MonatlicheAusgabenZusammenfassung[[#This Row],[G/L-Code]],AusgabenEinzelauflistung[Rechnungsdatum],\">=\"&O$3,AusgabenEinzelauflistung[Rechnungsdatum],\"<=\"&O$4)+SUMIFS(Sonstiges[Scheckbetrag],Sonstiges[G/L-Code],MonatlicheAusgabenZusammenfassung[[#This Row],[G/L-Code]],Sonstiges[Datum der Scheckeinreichung],\">=\"&DATEVALUE(\" 1. \"&MonatlicheAusgabenZusammenfassung[[#Headers],[Dezember]]&_xlfn.SINGLE(_JAHR)),Sonstiges[Datum der Scheckeinreichung],\"<=\"&O$4)","v":{"v":0,"d":"0.00 €"}},{"$f":"SUM(MonatlicheAusgabenZusammenfassung[[#This Row],[Januar]:[Dezember]])","v":{"v":0,"d":"0.00 €"}}]
[null,7000,"Computer",{"$f":"SUMIFS(AusgabenEinzelauflistung[Scheckbetrag],AusgabenEinzelauflistung[G/L-Code],MonatlicheAusgabenZusammenfassung[[#This Row],[G/L-Code]],AusgabenEinzelauflistung[Rechnungsdatum],\">=\"&D$3,AusgabenEinzelauflistung[Rechnungsdatum],\"<=\"&D$4)+SUMIFS(Sonstiges[Scheckbetrag],Sonstiges[G/L-Code],MonatlicheAusgabenZusammenfassung[[#This Row],[G/L-Code]],Sonstiges[Datum der Scheckeinreichung],\">=\"&DATEVALUE(\" 1. \"&MonatlicheAusgabenZusammenfassung[[#Headers],[Januar]]&_xlfn.SINGLE(_JAHR)),Sonstiges[Datum der Scheckeinreichung],\"<=\"&D$4)","v":{"v":0,"d":"0.00 €"}},{"$f":"SUMIFS(AusgabenEinzelauflistung[Scheckbetrag],AusgabenEinzelauflistung[G/L-Code],MonatlicheAusgabenZusammenfassung[[#This Row],[G/L-Code]],AusgabenEinzelauflistung[Rechnungsdatum],\">=\"&E$3,AusgabenEinzelauflistung[Rechnungsdatum],\"<=\"&E$4)+SUMIFS(Sonstiges[Scheckbetrag],Sonstiges[G/L-Code],MonatlicheAusgabenZusammenfassung[[#This Row],[G/L-Code]],Sonstiges[Datum der Scheckeinreichung],\">=\"&DATEVALUE(\" 1. \"&MonatlicheAusgabenZusammenfassung[[#Headers],[Februar]]&_xlfn.SINGLE(_JAHR)),Sonstiges[Datum der Scheckeinreichung],\"<=\"&E$4)","v":{"v":0,"d":"0.00 €"}},{"$f":"SUMIFS(AusgabenEinzelauflistung[Scheckbetrag],AusgabenEinzelauflistung[G/L-Code],MonatlicheAusgabenZusammenfassung[[#This Row],[G/L-Code]],AusgabenEinzelauflistung[Rechnungsdatum],\">=\"&F$3,AusgabenEinzelauflistung[Rechnungsdatum],\"<=\"&F$4)+SUMIFS(Sonstiges[Scheckbetrag],Sonstiges[G/L-Code],MonatlicheAusgabenZusammenfassung[[#This Row],[G/L-Code]],Sonstiges[Datum der Scheckeinreichung],\">=\"&DATEVALUE(\" 1. \"&MonatlicheAusgabenZusammenfassung[[#Headers],[März]]&_xlfn.SINGLE(_JAHR)),Sonstiges[Datum der Scheckeinreichung],\"<=\"&F$4)","v":{"v":0,"d":"0.00 €"}},{"$f":"SUMIFS(AusgabenEinzelauflistung[Scheckbetrag],AusgabenEinzelauflistung[G/L-Code],MonatlicheAusgabenZusammenfassung[[#This Row],[G/L-Code]],AusgabenEinzelauflistung[Rechnungsdatum],\">=\"&G$3,AusgabenEinzelauflistung[Rechnungsdatum],\"<=\"&G$4)+SUMIFS(Sonstiges[Scheckbetrag],Sonstiges[G/L-Code],MonatlicheAusgabenZusammenfassung[[#This Row],[G/L-Code]],Sonstiges[Datum der Scheckeinreichung],\">=\"&DATEVALUE(\" 1. \"&MonatlicheAusgabenZusammenfassung[[#Headers],[April]]&_xlfn.SINGLE(_JAHR)),Sonstiges[Datum der Scheckeinreichung],\"<=\"&G$4)","v":{"v":0,"d":"0.00 €"}},{"$f":"SUMIFS(AusgabenEinzelauflistung[Scheckbetrag],AusgabenEinzelauflistung[G/L-Code],MonatlicheAusgabenZusammenfassung[[#This Row],[G/L-Code]],AusgabenEinzelauflistung[Rechnungsdatum],\">=\"&H$3,AusgabenEinzelauflistung[Rechnungsdatum],\"<=\"&H$4)+SUMIFS(Sonstiges[Scheckbetrag],Sonstiges[G/L-Code],MonatlicheAusgabenZusammenfassung[[#This Row],[G/L-Code]],Sonstiges[Datum der Scheckeinreichung],\">=\"&DATEVALUE(\" 1. \"&MonatlicheAusgabenZusammenfassung[[#Headers],[Mai]]&_xlfn.SINGLE(_JAHR)),Sonstiges[Datum der Scheckeinreichung],\"<=\"&H$4)","v":{"v":0,"d":"0.00 €"}},{"$f":"SUMIFS(AusgabenEinzelauflistung[Scheckbetrag],AusgabenEinzelauflistung[G/L-Code],MonatlicheAusgabenZusammenfassung[[#This Row],[G/L-Code]],AusgabenEinzelauflistung[Rechnungsdatum],\">=\"&I$3,AusgabenEinzelauflistung[Rechnungsdatum],\"<=\"&I$4)+SUMIFS(Sonstiges[Scheckbetrag],Sonstiges[G/L-Code],MonatlicheAusgabenZusammenfassung[[#This Row],[G/L-Code]],Sonstiges[Datum der Scheckeinreichung],\">=\"&DATEVALUE(\" 1. \"&MonatlicheAusgabenZusammenfassung[[#Headers],[Juni]]&_xlfn.SINGLE(_JAHR)),Sonstiges[Datum der Scheckeinreichung],\"<=\"&I$4)","v":{"v":0,"d":"0.00 €"}},{"$f":"SUMIFS(AusgabenEinzelauflistung[Scheckbetrag],AusgabenEinzelauflistung[G/L-Code],MonatlicheAusgabenZusammenfassung[[#This Row],[G/L-Code]],AusgabenEinzelauflistung[Rechnungsdatum],\">=\"&J$3,AusgabenEinzelauflistung[Rechnungsdatum],\"<=\"&J$4)+SUMIFS(Sonstiges[Scheckbetrag],Sonstiges[G/L-Code],MonatlicheAusgabenZusammenfassung[[#This Row],[G/L-Code]],Sonstiges[Datum der Scheckeinreichung],\">=\"&DATEVALUE(\" 1. \"&MonatlicheAusgabenZusammenfassung[[#Headers],[Juli]]&_xlfn.SINGLE(_JAHR)),Sonstiges[Datum der Scheckeinreichung],\"<=\"&J$4)","v":{"v":0,"d":"0.00 €"}},{"$f":"SUMIFS(AusgabenEinzelauflistung[Scheckbetrag],AusgabenEinzelauflistung[G/L-Code],MonatlicheAusgabenZusammenfassung[[#This Row],[G/L-Code]],AusgabenEinzelauflistung[Rechnungsdatum],\">=\"&K$3,AusgabenEinzelauflistung[Rechnungsdatum],\"<=\"&K$4)+SUMIFS(Sonstiges[Scheckbetrag],Sonstiges[G/L-Code],MonatlicheAusgabenZusammenfassung[[#This Row],[G/L-Code]],Sonstiges[Datum der Scheckeinreichung],\">=\"&DATEVALUE(\" 1. \"&MonatlicheAusgabenZusammenfassung[[#Headers],[August]]&_xlfn.SINGLE(_JAHR)),Sonstiges[Datum der Scheckeinreichung],\"<=\"&K$4)","v":{"v":0,"d":"0.00 €"}},{"$f":"SUMIFS(AusgabenEinzelauflistung[Scheckbetrag],AusgabenEinzelauflistung[G/L-Code],MonatlicheAusgabenZusammenfassung[[#This Row],[G/L-Code]],AusgabenEinzelauflistung[Rechnungsdatum],\">=\"&L$3,AusgabenEinzelauflistung[Rechnungsdatum],\"<=\"&L$4)+SUMIFS(Sonstiges[Scheckbetrag],Sonstiges[G/L-Code],MonatlicheAusgabenZusammenfassung[[#This Row],[G/L-Code]],Sonstiges[Datum der Scheckeinreichung],\">=\"&DATEVALUE(\" 1. \"&MonatlicheAusgabenZusammenfassung[[#Headers],[September]]&_xlfn.SINGLE(_JAHR)),Sonstiges[Datum der Scheckeinreichung],\"<=\"&L$4)","v":{"v":0,"d":"0.00 €"}},{"$f":"SUMIFS(AusgabenEinzelauflistung[Scheckbetrag],AusgabenEinzelauflistung[G/L-Code],MonatlicheAusgabenZusammenfassung[[#This Row],[G/L-Code]],AusgabenEinzelauflistung[Rechnungsdatum],\">=\"&M$3,AusgabenEinzelauflistung[Rechnungsdatum],\"<=\"&M$4)+SUMIFS(Sonstiges[Scheckbetrag],Sonstiges[G/L-Code],MonatlicheAusgabenZusammenfassung[[#This Row],[G/L-Code]],Sonstiges[Datum der Scheckeinreichung],\">=\"&DATEVALUE(\" 1. \"&MonatlicheAusgabenZusammenfassung[[#Headers],[Oktober]]&_xlfn.SINGLE(_JAHR)),Sonstiges[Datum der Scheckeinreichung],\"<=\"&M$4)","v":{"v":0,"d":"0.00 €"}},{"$f":"SUMIFS(AusgabenEinzelauflistung[Scheckbetrag],AusgabenEinzelauflistung[G/L-Code],MonatlicheAusgabenZusammenfassung[[#This Row],[G/L-Code]],AusgabenEinzelauflistung[Rechnungsdatum],\">=\"&N$3,AusgabenEinzelauflistung[Rechnungsdatum],\"<=\"&N$4)+SUMIFS(Sonstiges[Scheckbetrag],Sonstiges[G/L-Code],MonatlicheAusgabenZusammenfassung[[#This Row],[G/L-Code]],Sonstiges[Datum der Scheckeinreichung],\">=\"&DATEVALUE(\" 1. \"&MonatlicheAusgabenZusammenfassung[[#Headers],[November]]&_xlfn.SINGLE(_JAHR)),Sonstiges[Datum der Scheckeinreichung],\"<=\"&N$4)","v":{"v":0,"d":"0.00 €"}},{"$f":"SUMIFS(AusgabenEinzelauflistung[Scheckbetrag],AusgabenEinzelauflistung[G/L-Code],MonatlicheAusgabenZusammenfassung[[#This Row],[G/L-Code]],AusgabenEinzelauflistung[Rechnungsdatum],\">=\"&O$3,AusgabenEinzelauflistung[Rechnungsdatum],\"<=\"&O$4)+SUMIFS(Sonstiges[Scheckbetrag],Sonstiges[G/L-Code],MonatlicheAusgabenZusammenfassung[[#This Row],[G/L-Code]],Sonstiges[Datum der Scheckeinreichung],\">=\"&DATEVALUE(\" 1. \"&MonatlicheAusgabenZusammenfassung[[#Headers],[Dezember]]&_xlfn.SINGLE(_JAHR)),Sonstiges[Datum der Scheckeinreichung],\"<=\"&O$4)","v":{"v":0,"d":"0.00 €"}},{"$f":"SUM(MonatlicheAusgabenZusammenfassung[[#This Row],[Januar]:[Dezember]])","v":{"v":0,"d":"0.00 €"}}]
[null,8000,"Krankenversicherung",{"$f":"SUMIFS(AusgabenEinzelauflistung[Scheckbetrag],AusgabenEinzelauflistung[G/L-Code],MonatlicheAusgabenZusammenfassung[[#This Row],[G/L-Code]],AusgabenEinzelauflistung[Rechnungsdatum],\">=\"&D$3,AusgabenEinzelauflistung[Rechnungsdatum],\"<=\"&D$4)+SUMIFS(Sonstiges[Scheckbetrag],Sonstiges[G/L-Code],MonatlicheAusgabenZusammenfassung[[#This Row],[G/L-Code]],Sonstiges[Datum der Scheckeinreichung],\">=\"&DATEVALUE(\" 1. \"&MonatlicheAusgabenZusammenfassung[[#Headers],[Januar]]&_xlfn.SINGLE(_JAHR)),Sonstiges[Datum der Scheckeinreichung],\"<=\"&D$4)","v":{"v":0,"d":"0.00 €"}},{"$f":"SUMIFS(AusgabenEinzelauflistung[Scheckbetrag],AusgabenEinzelauflistung[G/L-Code],MonatlicheAusgabenZusammenfassung[[#This Row],[G/L-Code]],AusgabenEinzelauflistung[Rechnungsdatum],\">=\"&E$3,AusgabenEinzelauflistung[Rechnungsdatum],\"<=\"&E$4)+SUMIFS(Sonstiges[Scheckbetrag],Sonstiges[G/L-Code],MonatlicheAusgabenZusammenfassung[[#This Row],[G/L-Code]],Sonstiges[Datum der Scheckeinreichung],\">=\"&DATEVALUE(\" 1. \"&MonatlicheAusgabenZusammenfassung[[#Headers],[Februar]]&_xlfn.SINGLE(_JAHR)),Sonstiges[Datum der Scheckeinreichung],\"<=\"&E$4)","v":{"v":0,"d":"0.00 €"}},{"$f":"SUMIFS(AusgabenEinzelauflistung[Scheckbetrag],AusgabenEinzelauflistung[G/L-Code],MonatlicheAusgabenZusammenfassung[[#This Row],[G/L-Code]],AusgabenEinzelauflistung[Rechnungsdatum],\">=\"&F$3,AusgabenEinzelauflistung[Rechnungsdatum],\"<=\"&F$4)+SUMIFS(Sonstiges[Scheckbetrag],Sonstiges[G/L-Code],MonatlicheAusgabenZusammenfassung[[#This Row],[G/L-Code]],Sonstiges[Datum der Scheckeinreichung],\">=\"&DATEVALUE(\" 1. \"&MonatlicheAusgabenZusammenfassung[[#Headers],[März]]&_xlfn.SINGLE(_JAHR)),Sonstiges[Datum der Scheckeinreichung],\"<=\"&F$4)","v":{"v":0,"d":"0.00 €"}},{"$f":"SUMIFS(AusgabenEinzelauflistung[Scheckbetrag],AusgabenEinzelauflistung[G/L-Code],MonatlicheAusgabenZusammenfassung[[#This Row],[G/L-Code]],AusgabenEinzelauflistung[Rechnungsdatum],\">=\"&G$3,AusgabenEinzelauflistung[Rechnungsdatum],\"<=\"&G$4)+SUMIFS(Sonstiges[Scheckbetrag],Sonstiges[G/L-Code],MonatlicheAusgabenZusammenfassung[[#This Row],[G/L-Code]],Sonstiges[Datum der Scheckeinreichung],\">=\"&DATEVALUE(\" 1. \"&MonatlicheAusgabenZusammenfassung[[#Headers],[April]]&_xlfn.SINGLE(_JAHR)),Sonstiges[Datum der Scheckeinreichung],\"<=\"&G$4)","v":{"v":0,"d":"0.00 €"}},{"$f":"SUMIFS(AusgabenEinzelauflistung[Scheckbetrag],AusgabenEinzelauflistung[G/L-Code],MonatlicheAusgabenZusammenfassung[[#This Row],[G/L-Code]],AusgabenEinzelauflistung[Rechnungsdatum],\">=\"&H$3,AusgabenEinzelauflistung[Rechnungsdatum],\"<=\"&H$4)+SUMIFS(Sonstiges[Scheckbetrag],Sonstiges[G/L-Code],MonatlicheAusgabenZusammenfassung[[#This Row],[G/L-Code]],Sonstiges[Datum der Scheckeinreichung],\">=\"&DATEVALUE(\" 1. \"&MonatlicheAusgabenZusammenfassung[[#Headers],[Mai]]&_xlfn.SINGLE(_JAHR)),Sonstiges[Datum der Scheckeinreichung],\"<=\"&H$4)","v":{"v":0,"d":"0.00 €"}},{"$f":"SUMIFS(AusgabenEinzelauflistung[Scheckbetrag],AusgabenEinzelauflistung[G/L-Code],MonatlicheAusgabenZusammenfassung[[#This Row],[G/L-Code]],AusgabenEinzelauflistung[Rechnungsdatum],\">=\"&I$3,AusgabenEinzelauflistung[Rechnungsdatum],\"<=\"&I$4)+SUMIFS(Sonstiges[Scheckbetrag],Sonstiges[G/L-Code],MonatlicheAusgabenZusammenfassung[[#This Row],[G/L-Code]],Sonstiges[Datum der Scheckeinreichung],\">=\"&DATEVALUE(\" 1. \"&MonatlicheAusgabenZusammenfassung[[#Headers],[Juni]]&_xlfn.SINGLE(_JAHR)),Sonstiges[Datum der Scheckeinreichung],\"<=\"&I$4)","v":{"v":0,"d":"0.00 €"}},{"$f":"SUMIFS(AusgabenEinzelauflistung[Scheckbetrag],AusgabenEinzelauflistung[G/L-Code],MonatlicheAusgabenZusammenfassung[[#This Row],[G/L-Code]],AusgabenEinzelauflistung[Rechnungsdatum],\">=\"&J$3,AusgabenEinzelauflistung[Rechnungsdatum],\"<=\"&J$4)+SUMIFS(Sonstiges[Scheckbetrag],Sonstiges[G/L-Code],MonatlicheAusgabenZusammenfassung[[#This Row],[G/L-Code]],Sonstiges[Datum der Scheckeinreichung],\">=\"&DATEVALUE(\" 1. \"&MonatlicheAusgabenZusammenfassung[[#Headers],[Juli]]&_xlfn.SINGLE(_JAHR)),Sonstiges[Datum der Scheckeinreichung],\"<=\"&J$4)","v":{"v":0,"d":"0.00 €"}},{"$f":"SUMIFS(AusgabenEinzelauflistung[Scheckbetrag],AusgabenEinzelauflistung[G/L-Code],MonatlicheAusgabenZusammenfassung[[#This Row],[G/L-Code]],AusgabenEinzelauflistung[Rechnungsdatum],\">=\"&K$3,AusgabenEinzelauflistung[Rechnungsdatum],\"<=\"&K$4)+SUMIFS(Sonstiges[Scheckbetrag],Sonstiges[G/L-Code],MonatlicheAusgabenZusammenfassung[[#This Row],[G/L-Code]],Sonstiges[Datum der Scheckeinreichung],\">=\"&DATEVALUE(\" 1. \"&MonatlicheAusgabenZusammenfassung[[#Headers],[August]]&_xlfn.SINGLE(_JAHR)),Sonstiges[Datum der Scheckeinreichung],\"<=\"&K$4)","v":{"v":0,"d":"0.00 €"}},{"$f":"SUMIFS(AusgabenEinzelauflistung[Scheckbetrag],AusgabenEinzelauflistung[G/L-Code],MonatlicheAusgabenZusammenfassung[[#This Row],[G/L-Code]],AusgabenEinzelauflistung[Rechnungsdatum],\">=\"&L$3,AusgabenEinzelauflistung[Rechnungsdatum],\"<=\"&L$4)+SUMIFS(Sonstiges[Scheckbetrag],Sonstiges[G/L-Code],MonatlicheAusgabenZusammenfassung[[#This Row],[G/L-Code]],Sonstiges[Datum der Scheckeinreichung],\">=\"&DATEVALUE(\" 1. \"&MonatlicheAusgabenZusammenfassung[[#Headers],[September]]&_xlfn.SINGLE(_JAHR)),Sonstiges[Datum der Scheckeinreichung],\"<=\"&L$4)","v":{"v":0,"d":"0.00 €"}},{"$f":"SUMIFS(AusgabenEinzelauflistung[Scheckbetrag],AusgabenEinzelauflistung[G/L-Code],MonatlicheAusgabenZusammenfassung[[#This Row],[G/L-Code]],AusgabenEinzelauflistung[Rechnungsdatum],\">=\"&M$3,AusgabenEinzelauflistung[Rechnungsdatum],\"<=\"&M$4)+SUMIFS(Sonstiges[Scheckbetrag],Sonstiges[G/L-Code],MonatlicheAusgabenZusammenfassung[[#This Row],[G/L-Code]],Sonstiges[Datum der Scheckeinreichung],\">=\"&DATEVALUE(\" 1. \"&MonatlicheAusgabenZusammenfassung[[#Headers],[Oktober]]&_xlfn.SINGLE(_JAHR)),Sonstiges[Datum der Scheckeinreichung],\"<=\"&M$4)","v":{"v":0,"d":"0.00 €"}},{"$f":"SUMIFS(AusgabenEinzelauflistung[Scheckbetrag],AusgabenEinzelauflistung[G/L-Code],MonatlicheAusgabenZusammenfassung[[#This Row],[G/L-Code]],AusgabenEinzelauflistung[Rechnungsdatum],\">=\"&N$3,AusgabenEinzelauflistung[Rechnungsdatum],\"<=\"&N$4)+SUMIFS(Sonstiges[Scheckbetrag],Sonstiges[G/L-Code],MonatlicheAusgabenZusammenfassung[[#This Row],[G/L-Code]],Sonstiges[Datum der Scheckeinreichung],\">=\"&DATEVALUE(\" 1. \"&MonatlicheAusgabenZusammenfassung[[#Headers],[November]]&_xlfn.SINGLE(_JAHR)),Sonstiges[Datum der Scheckeinreichung],\"<=\"&N$4)","v":{"v":0,"d":"0.00 €"}},{"$f":"SUMIFS(AusgabenEinzelauflistung[Scheckbetrag],AusgabenEinzelauflistung[G/L-Code],MonatlicheAusgabenZusammenfassung[[#This Row],[G/L-Code]],AusgabenEinzelauflistung[Rechnungsdatum],\">=\"&O$3,AusgabenEinzelauflistung[Rechnungsdatum],\"<=\"&O$4)+SUMIFS(Sonstiges[Scheckbetrag],Sonstiges[G/L-Code],MonatlicheAusgabenZusammenfassung[[#This Row],[G/L-Code]],Sonstiges[Datum der Scheckeinreichung],\">=\"&DATEVALUE(\" 1. \"&MonatlicheAusgabenZusammenfassung[[#Headers],[Dezember]]&_xlfn.SINGLE(_JAHR)),Sonstiges[Datum der Scheckeinreichung],\"<=\"&O$4)","v":{"v":0,"d":"0.00 €"}},{"$f":"SUM(MonatlicheAusgabenZusammenfassung[[#This Row],[Januar]:[Dezember]])","v":{"v":0,"d":"0.00 €"}}]
[null,9000,"Gebäudekosten",{"$f":"SUMIFS(AusgabenEinzelauflistung[Scheckbetrag],AusgabenEinzelauflistung[G/L-Code],MonatlicheAusgabenZusammenfassung[[#This Row],[G/L-Code]],AusgabenEinzelauflistung[Rechnungsdatum],\">=\"&D$3,AusgabenEinzelauflistung[Rechnungsdatum],\"<=\"&D$4)+SUMIFS(Sonstiges[Scheckbetrag],Sonstiges[G/L-Code],MonatlicheAusgabenZusammenfassung[[#This Row],[G/L-Code]],Sonstiges[Datum der Scheckeinreichung],\">=\"&DATEVALUE(\" 1. \"&MonatlicheAusgabenZusammenfassung[[#Headers],[Januar]]&_xlfn.SINGLE(_JAHR)),Sonstiges[Datum der Scheckeinreichung],\"<=\"&D$4)","v":{"v":0,"d":"0.00 €"}},{"$f":"SUMIFS(AusgabenEinzelauflistung[Scheckbetrag],AusgabenEinzelauflistung[G/L-Code],MonatlicheAusgabenZusammenfassung[[#This Row],[G/L-Code]],AusgabenEinzelauflistung[Rechnungsdatum],\">=\"&E$3,AusgabenEinzelauflistung[Rechnungsdatum],\"<=\"&E$4)+SUMIFS(Sonstiges[Scheckbetrag],Sonstiges[G/L-Code],MonatlicheAusgabenZusammenfassung[[#This Row],[G/L-Code]],Sonstiges[Datum der Scheckeinreichung],\">=\"&DATEVALUE(\" 1. \"&MonatlicheAusgabenZusammenfassung[[#Headers],[Februar]]&_xlfn.SINGLE(_JAHR)),Sonstiges[Datum der Scheckeinreichung],\"<=\"&E$4)","v":{"v":0,"d":"0.00 €"}},{"$f":"SUMIFS(AusgabenEinzelauflistung[Scheckbetrag],AusgabenEinzelauflistung[G/L-Code],MonatlicheAusgabenZusammenfassung[[#This Row],[G/L-Code]],AusgabenEinzelauflistung[Rechnungsdatum],\">=\"&F$3,AusgabenEinzelauflistung[Rechnungsdatum],\"<=\"&F$4)+SUMIFS(Sonstiges[Scheckbetrag],Sonstiges[G/L-Code],MonatlicheAusgabenZusammenfassung[[#This Row],[G/L-Code]],Sonstiges[Datum der Scheckeinreichung],\">=\"&DATEVALUE(\" 1. \"&MonatlicheAusgabenZusammenfassung[[#Headers],[März]]&_xlfn.SINGLE(_JAHR)),Sonstiges[Datum der Scheckeinreichung],\"<=\"&F$4)","v":{"v":0,"d":"0.00 €"}},{"$f":"SUMIFS(AusgabenEinzelauflistung[Scheckbetrag],AusgabenEinzelauflistung[G/L-Code],MonatlicheAusgabenZusammenfassung[[#This Row],[G/L-Code]],AusgabenEinzelauflistung[Rechnungsdatum],\">=\"&G$3,AusgabenEinzelauflistung[Rechnungsdatum],\"<=\"&G$4)+SUMIFS(Sonstiges[Scheckbetrag],Sonstiges[G/L-Code],MonatlicheAusgabenZusammenfassung[[#This Row],[G/L-Code]],Sonstiges[Datum der Scheckeinreichung],\">=\"&DATEVALUE(\" 1. \"&MonatlicheAusgabenZusammenfassung[[#Headers],[April]]&_xlfn.SINGLE(_JAHR)),Sonstiges[Datum der Scheckeinreichung],\"<=\"&G$4)","v":{"v":0,"d":"0.00 €"}},{"$f":"SUMIFS(AusgabenEinzelauflistung[Scheckbetrag],AusgabenEinzelauflistung[G/L-Code],MonatlicheAusgabenZusammenfassung[[#This Row],[G/L-Code]],AusgabenEinzelauflistung[Rechnungsdatum],\">=\"&H$3,AusgabenEinzelauflistung[Rechnungsdatum],\"<=\"&H$4)+SUMIFS(Sonstiges[Scheckbetrag],Sonstiges[G/L-Code],MonatlicheAusgabenZusammenfassung[[#This Row],[G/L-Code]],Sonstiges[Datum der Scheckeinreichung],\">=\"&DATEVALUE(\" 1. \"&MonatlicheAusgabenZusammenfassung[[#Headers],[Mai]]&_xlfn.SINGLE(_JAHR)),Sonstiges[Datum der Scheckeinreichung],\"<=\"&H$4)","v":{"v":0,"d":"0.00 €"}},{"$f":"SUMIFS(AusgabenEinzelauflistung[Scheckbetrag],AusgabenEinzelauflistung[G/L-Code],MonatlicheAusgabenZusammenfassung[[#This Row],[G/L-Code]],AusgabenEinzelauflistung[Rechnungsdatum],\">=\"&I$3,AusgabenEinzelauflistung[Rechnungsdatum],\"<=\"&I$4)+SUMIFS(Sonstiges[Scheckbetrag],Sonstiges[G/L-Code],MonatlicheAusgabenZusammenfassung[[#This Row],[G/L-Code]],Sonstiges[Datum der Scheckeinreichung],\">=\"&DATEVALUE(\" 1. \"&MonatlicheAusgabenZusammenfassung[[#Headers],[Juni]]&_xlfn.SINGLE(_JAHR)),Sonstiges[Datum der Scheckeinreichung],\"<=\"&I$4)","v":{"v":0,"d":"0.00 €"}},{"$f":"SUMIFS(AusgabenEinzelauflistung[Scheckbetrag],AusgabenEinzelauflistung[G/L-Code],MonatlicheAusgabenZusammenfassung[[#This Row],[G/L-Code]],AusgabenEinzelauflistung[Rechnungsdatum],\">=\"&J$3,AusgabenEinzelauflistung[Rechnungsdatum],\"<=\"&J$4)+SUMIFS(Sonstiges[Scheckbetrag],Sonstiges[G/L-Code],MonatlicheAusgabenZusammenfassung[[#This Row],[G/L-Code]],Sonstiges[Datum der Scheckeinreichung],\">=\"&DATEVALUE(\" 1. \"&MonatlicheAusgabenZusammenfassung[[#Headers],[Juli]]&_xlfn.SINGLE(_JAHR)),Sonstiges[Datum der Scheckeinreichung],\"<=\"&J$4)","v":{"v":0,"d":"0.00 €"}},{"$f":"SUMIFS(AusgabenEinzelauflistung[Scheckbetrag],AusgabenEinzelauflistung[G/L-Code],MonatlicheAusgabenZusammenfassung[[#This Row],[G/L-Code]],AusgabenEinzelauflistung[Rechnungsdatum],\">=\"&K$3,AusgabenEinzelauflistung[Rechnungsdatum],\"<=\"&K$4)+SUMIFS(Sonstiges[Scheckbetrag],Sonstiges[G/L-Code],MonatlicheAusgabenZusammenfassung[[#This Row],[G/L-Code]],Sonstiges[Datum der Scheckeinreichung],\">=\"&DATEVALUE(\" 1. \"&MonatlicheAusgabenZusammenfassung[[#Headers],[August]]&_xlfn.SINGLE(_JAHR)),Sonstiges[Datum der Scheckeinreichung],\"<=\"&K$4)","v":{"v":0,"d":"0.00 €"}},{"$f":"SUMIFS(AusgabenEinzelauflistung[Scheckbetrag],AusgabenEinzelauflistung[G/L-Code],MonatlicheAusgabenZusammenfassung[[#This Row],[G/L-Code]],AusgabenEinzelauflistung[Rechnungsdatum],\">=\"&L$3,AusgabenEinzelauflistung[Rechnungsdatum],\"<=\"&L$4)+SUMIFS(Sonstiges[Scheckbetrag],Sonstiges[G/L-Code],MonatlicheAusgabenZusammenfassung[[#This Row],[G/L-Code]],Sonstiges[Datum der Scheckeinreichung],\">=\"&DATEVALUE(\" 1. \"&MonatlicheAusgabenZusammenfassung[[#Headers],[September]]&_xlfn.SINGLE(_JAHR)),Sonstiges[Datum der Scheckeinreichung],\"<=\"&L$4)","v":{"v":0,"d":"0.00 €"}},{"$f":"SUMIFS(AusgabenEinzelauflistung[Scheckbetrag],AusgabenEinzelauflistung[G/L-Code],MonatlicheAusgabenZusammenfassung[[#This Row],[G/L-Code]],AusgabenEinzelauflistung[Rechnungsdatum],\">=\"&M$3,AusgabenEinzelauflistung[Rechnungsdatum],\"<=\"&M$4)+SUMIFS(Sonstiges[Scheckbetrag],Sonstiges[G/L-Code],MonatlicheAusgabenZusammenfassung[[#This Row],[G/L-Code]],Sonstiges[Datum der Scheckeinreichung],\">=\"&DATEVALUE(\" 1. \"&MonatlicheAusgabenZusammenfassung[[#Headers],[Oktober]]&_xlfn.SINGLE(_JAHR)),Sonstiges[Datum der Scheckeinreichung],\"<=\"&M$4)","v":{"v":0,"d":"0.00 €"}},{"$f":"SUMIFS(AusgabenEinzelauflistung[Scheckbetrag],AusgabenEinzelauflistung[G/L-Code],MonatlicheAusgabenZusammenfassung[[#This Row],[G/L-Code]],AusgabenEinzelauflistung[Rechnungsdatum],\">=\"&N$3,AusgabenEinzelauflistung[Rechnungsdatum],\"<=\"&N$4)+SUMIFS(Sonstiges[Scheckbetrag],Sonstiges[G/L-Code],MonatlicheAusgabenZusammenfassung[[#This Row],[G/L-Code]],Sonstiges[Datum der Scheckeinreichung],\">=\"&DATEVALUE(\" 1. \"&MonatlicheAusgabenZusammenfassung[[#Headers],[November]]&_xlfn.SINGLE(_JAHR)),Sonstiges[Datum der Scheckeinreichung],\"<=\"&N$4)","v":{"v":0,"d":"0.00 €"}},{"$f":"SUMIFS(AusgabenEinzelauflistung[Scheckbetrag],AusgabenEinzelauflistung[G/L-Code],MonatlicheAusgabenZusammenfassung[[#This Row],[G/L-Code]],AusgabenEinzelauflistung[Rechnungsdatum],\">=\"&O$3,AusgabenEinzelauflistung[Rechnungsdatum],\"<=\"&O$4)+SUMIFS(Sonstiges[Scheckbetrag],Sonstiges[G/L-Code],MonatlicheAusgabenZusammenfassung[[#This Row],[G/L-Code]],Sonstiges[Datum der Scheckeinreichung],\">=\"&DATEVALUE(\" 1. \"&MonatlicheAusgabenZusammenfassung[[#Headers],[Dezember]]&_xlfn.SINGLE(_JAHR)),Sonstiges[Datum der Scheckeinreichung],\"<=\"&O$4)","v":{"v":0,"d":"0.00 €"}},{"$f":"SUM(MonatlicheAusgabenZusammenfassung[[#This Row],[Januar]:[Dezember]])","v":{"v":0,"d":"0.00 €"}}]
[null,10000,"Marketing",{"$f":"SUMIFS(AusgabenEinzelauflistung[Scheckbetrag],AusgabenEinzelauflistung[G/L-Code],MonatlicheAusgabenZusammenfassung[[#This Row],[G/L-Code]],AusgabenEinzelauflistung[Rechnungsdatum],\">=\"&D$3,AusgabenEinzelauflistung[Rechnungsdatum],\"<=\"&D$4)+SUMIFS(Sonstiges[Scheckbetrag],Sonstiges[G/L-Code],MonatlicheAusgabenZusammenfassung[[#This Row],[G/L-Code]],Sonstiges[Datum der Scheckeinreichung],\">=\"&DATEVALUE(\" 1. \"&MonatlicheAusgabenZusammenfassung[[#Headers],[Januar]]&_xlfn.SINGLE(_JAHR)),Sonstiges[Datum der Scheckeinreichung],\"<=\"&D$4)","v":{"v":0,"d":"0.00 €"}},{"$f":"SUMIFS(AusgabenEinzelauflistung[Scheckbetrag],AusgabenEinzelauflistung[G/L-Code],MonatlicheAusgabenZusammenfassung[[#This Row],[G/L-Code]],AusgabenEinzelauflistung[Rechnungsdatum],\">=\"&E$3,AusgabenEinzelauflistung[Rechnungsdatum],\"<=\"&E$4)+SUMIFS(Sonstiges[Scheckbetrag],Sonstiges[G/L-Code],MonatlicheAusgabenZusammenfassung[[#This Row],[G/L-Code]],Sonstiges[Datum der Scheckeinreichung],\">=\"&DATEVALUE(\" 1. \"&MonatlicheAusgabenZusammenfassung[[#Headers],[Februar]]&_xlfn.SINGLE(_JAHR)),Sonstiges[Datum der Scheckeinreichung],\"<=\"&E$4)","v":{"v":0,"d":"0.00 €"}},{"$f":"SUMIFS(AusgabenEinzelauflistung[Scheckbetrag],AusgabenEinzelauflistung[G/L-Code],MonatlicheAusgabenZusammenfassung[[#This Row],[G/L-Code]],AusgabenEinzelauflistung[Rechnungsdatum],\">=\"&F$3,AusgabenEinzelauflistung[Rechnungsdatum],\"<=\"&F$4)+SUMIFS(Sonstiges[Scheckbetrag],Sonstiges[G/L-Code],MonatlicheAusgabenZusammenfassung[[#This Row],[G/L-Code]],Sonstiges[Datum der Scheckeinreichung],\">=\"&DATEVALUE(\" 1. \"&MonatlicheAusgabenZusammenfassung[[#Headers],[März]]&_xlfn.SINGLE(_JAHR)),Sonstiges[Datum der Scheckeinreichung],\"<=\"&F$4)","v":{"v":0,"d":"0.00 €"}},{"$f":"SUMIFS(AusgabenEinzelauflistung[Scheckbetrag],AusgabenEinzelauflistung[G/L-Code],MonatlicheAusgabenZusammenfassung[[#This Row],[G/L-Code]],AusgabenEinzelauflistung[Rechnungsdatum],\">=\"&G$3,AusgabenEinzelauflistung[Rechnungsdatum],\"<=\"&G$4)+SUMIFS(Sonstiges[Scheckbetrag],Sonstiges[G/L-Code],MonatlicheAusgabenZusammenfassung[[#This Row],[G/L-Code]],Sonstiges[Datum der Scheckeinreichung],\">=\"&DATEVALUE(\" 1. \"&MonatlicheAusgabenZusammenfassung[[#Headers],[April]]&_xlfn.SINGLE(_JAHR)),Sonstiges[Datum der Scheckeinreichung],\"<=\"&G$4)","v":{"v":0,"d":"0.00 €"}},{"$f":"SUMIFS(AusgabenEinzelauflistung[Scheckbetrag],AusgabenEinzelauflistung[G/L-Code],MonatlicheAusgabenZusammenfassung[[#This Row],[G/L-Code]],AusgabenEinzelauflistung[Rechnungsdatum],\">=\"&H$3,AusgabenEinzelauflistung[Rechnungsdatum],\"<=\"&H$4)+SUMIFS(Sonstiges[Scheckbetrag],Sonstiges[G/L-Code],MonatlicheAusgabenZusammenfassung[[#This Row],[G/L-Code]],Sonstiges[Datum der Scheckeinreichung],\">=\"&DATEVALUE(\" 1. \"&MonatlicheAusgabenZusammenfassung[[#Headers],[Mai]]&_xlfn.SINGLE(_JAHR)),Sonstiges[Datum der Scheckeinreichung],\"<=\"&H$4)","v":{"v":0,"d":"0.00 €"}},{"$f":"SUMIFS(AusgabenEinzelauflistung[Scheckbetrag],AusgabenEinzelauflistung[G/L-Code],MonatlicheAusgabenZusammenfassung[[#This Row],[G/L-Code]],AusgabenEinzelauflistung[Rechnungsdatum],\">=\"&I$3,AusgabenEinzelauflistung[Rechnungsdatum],\"<=\"&I$4)+SUMIFS(Sonstiges[Scheckbetrag],Sonstiges[G/L-Code],MonatlicheAusgabenZusammenfassung[[#This Row],[G/L-Code]],Sonstiges[Datum der Scheckeinreichung],\">=\"&DATEVALUE(\" 1. \"&MonatlicheAusgabenZusammenfassung[[#Headers],[Juni]]&_xlfn.SINGLE(_JAHR)),Sonstiges[Datum der Scheckeinreichung],\"<=\"&I$4)","v":{"v":0,"d":"0.00 €"}},{"$f":"SUMIFS(AusgabenEinzelauflistung[Scheckbetrag],AusgabenEinzelauflistung[G/L-Code],MonatlicheAusgabenZusammenfassung[[#This Row],[G/L-Code]],AusgabenEinzelauflistung[Rechnungsdatum],\">=\"&J$3,AusgabenEinzelauflistung[Rechnungsdatum],\"<=\"&J$4)+SUMIFS(Sonstiges[Scheckbetrag],Sonstiges[G/L-Code],MonatlicheAusgabenZusammenfassung[[#This Row],[G/L-Code]],Sonstiges[Datum der Scheckeinreichung],\">=\"&DATEVALUE(\" 1. \"&MonatlicheAusgabenZusammenfassung[[#Headers],[Juli]]&_xlfn.SINGLE(_JAHR)),Sonstiges[Datum der Scheckeinreichung],\"<=\"&J$4)","v":{"v":0,"d":"0.00 €"}},{"$f":"SUMIFS(AusgabenEinzelauflistung[Scheckbetrag],AusgabenEinzelauflistung[G/L-Code],MonatlicheAusgabenZusammenfassung[[#This Row],[G/L-Code]],AusgabenEinzelauflistung[Rechnungsdatum],\">=\"&K$3,AusgabenEinzelauflistung[Rechnungsdatum],\"<=\"&K$4)+SUMIFS(Sonstiges[Scheckbetrag],Sonstiges[G/L-Code],MonatlicheAusgabenZusammenfassung[[#This Row],[G/L-Code]],Sonstiges[Datum der Scheckeinreichung],\">=\"&DATEVALUE(\" 1. \"&MonatlicheAusgabenZusammenfassung[[#Headers],[August]]&_xlfn.SINGLE(_JAHR)),Sonstiges[Datum der Scheckeinreichung],\"<=\"&K$4)","v":{"v":0,"d":"0.00 €"}},{"$f":"SUMIFS(AusgabenEinzelauflistung[Scheckbetrag],AusgabenEinzelauflistung[G/L-Code],MonatlicheAusgabenZusammenfassung[[#This Row],[G/L-Code]],AusgabenEinzelauflistung[Rechnungsdatum],\">=\"&L$3,AusgabenEinzelauflistung[Rechnungsdatum],\"<=\"&L$4)+SUMIFS(Sonstiges[Scheckbetrag],Sonstiges[G/L-Code],MonatlicheAusgabenZusammenfassung[[#This Row],[G/L-Code]],Sonstiges[Datum der Scheckeinreichung],\">=\"&DATEVALUE(\" 1. \"&MonatlicheAusgabenZusammenfassung[[#Headers],[September]]&_xlfn.SINGLE(_JAHR)),Sonstiges[Datum der Scheckeinreichung],\"<=\"&L$4)","v":{"v":0,"d":"0.00 €"}},{"$f":"SUMIFS(AusgabenEinzelauflistung[Scheckbetrag],AusgabenEinzelauflistung[G/L-Code],MonatlicheAusgabenZusammenfassung[[#This Row],[G/L-Code]],AusgabenEinzelauflistung[Rechnungsdatum],\">=\"&M$3,AusgabenEinzelauflistung[Rechnungsdatum],\"<=\"&M$4)+SUMIFS(Sonstiges[Scheckbetrag],Sonstiges[G/L-Code],MonatlicheAusgabenZusammenfassung[[#This Row],[G/L-Code]],Sonstiges[Datum der Scheckeinreichung],\">=\"&DATEVALUE(\" 1. \"&MonatlicheAusgabenZusammenfassung[[#Headers],[Oktober]]&_xlfn.SINGLE(_JAHR)),Sonstiges[Datum der Scheckeinreichung],\"<=\"&M$4)","v":{"v":0,"d":"0.00 €"}},{"$f":"SUMIFS(AusgabenEinzelauflistung[Scheckbetrag],AusgabenEinzelauflistung[G/L-Code],MonatlicheAusgabenZusammenfassung[[#This Row],[G/L-Code]],AusgabenEinzelauflistung[Rechnungsdatum],\">=\"&N$3,AusgabenEinzelauflistung[Rechnungsdatum],\"<=\"&N$4)+SUMIFS(Sonstiges[Scheckbetrag],Sonstiges[G/L-Code],MonatlicheAusgabenZusammenfassung[[#This Row],[G/L-Code]],Sonstiges[Datum der Scheckeinreichung],\">=\"&DATEVALUE(\" 1. \"&MonatlicheAusgabenZusammenfassung[[#Headers],[November]]&_xlfn.SINGLE(_JAHR)),Sonstiges[Datum der Scheckeinreichung],\"<=\"&N$4)","v":{"v":0,"d":"0.00 €"}},{"$f":"SUMIFS(AusgabenEinzelauflistung[Scheckbetrag],AusgabenEinzelauflistung[G/L-Code],MonatlicheAusgabenZusammenfassung[[#This Row],[G/L-Code]],AusgabenEinzelauflistung[Rechnungsdatum],\">=\"&O$3,AusgabenEinzelauflistung[Rechnungsdatum],\"<=\"&O$4)+SUMIFS(Sonstiges[Scheckbetrag],Sonstiges[G/L-Code],MonatlicheAusgabenZusammenfassung[[#This Row],[G/L-Code]],Sonstiges[Datum der Scheckeinreichung],\">=\"&DATEVALUE(\" 1. \"&MonatlicheAusgabenZusammenfassung[[#Headers],[Dezember]]&_xlfn.SINGLE(_JAHR)),Sonstiges[Datum der Scheckeinreichung],\"<=\"&O$4)","v":{"v":0,"d":"0.00 €"}},{"$f":"SUM(MonatlicheAusgabenZusammenfassung[[#This Row],[Januar]:[Dezember]])","v":{"v":0,"d":"0.00 €"}}]
[null,11000,"Spenden",{"$f":"SUMIFS(AusgabenEinzelauflistung[Scheckbetrag],AusgabenEinzelauflistung[G/L-Code],MonatlicheAusgabenZusammenfassung[[#This Row],[G/L-Code]],AusgabenEinzelauflistung[Rechnungsdatum],\">=\"&D$3,AusgabenEinzelauflistung[Rechnungsdatum],\"<=\"&D$4)+SUMIFS(Sonstiges[Scheckbetrag],Sonstiges[G/L-Code],MonatlicheAusgabenZusammenfassung[[#This Row],[G/L-Code]],Sonstiges[Datum der Scheckeinreichung],\">=\"&DATEVALUE(\" 1. \"&MonatlicheAusgabenZusammenfassung[[#Headers],[Januar]]&_xlfn.SINGLE(_JAHR)),Sonstiges[Datum der Scheckeinreichung],\"<=\"&D$4)","v":{"v":0,"d":"0.00 €"}},{"$f":"SUMIFS(AusgabenEinzelauflistung[Scheckbetrag],AusgabenEinzelauflistung[G/L-Code],MonatlicheAusgabenZusammenfassung[[#This Row],[G/L-Code]],AusgabenEinzelauflistung[Rechnungsdatum],\">=\"&E$3,AusgabenEinzelauflistung[Rechnungsdatum],\"<=\"&E$4)+SUMIFS(Sonstiges[Scheckbetrag],Sonstiges[G/L-Code],MonatlicheAusgabenZusammenfassung[[#This Row],[G/L-Code]],Sonstiges[Datum der Scheckeinreichung],\">=\"&DATEVALUE(\" 1. \"&MonatlicheAusgabenZusammenfassung[[#Headers],[Februar]]&_xlfn.SINGLE(_JAHR)),Sonstiges[Datum der Scheckeinreichung],\"<=\"&E$4)","v":{"v":0,"d":"0.00 €"}},{"$f":"SUMIFS(AusgabenEinzelauflistung[Scheckbetrag],AusgabenEinzelauflistung[G/L-Code],MonatlicheAusgabenZusammenfassung[[#This Row],[G/L-Code]],AusgabenEinzelauflistung[Rechnungsdatum],\">=\"&F$3,AusgabenEinzelauflistung[Rechnungsdatum],\"<=\"&F$4)+SUMIFS(Sonstiges[Scheckbetrag],Sonstiges[G/L-Code],MonatlicheAusgabenZusammenfassung[[#This Row],[G/L-Code]],Sonstiges[Datum der Scheckeinreichung],\">=\"&DATEVALUE(\" 1. \"&MonatlicheAusgabenZusammenfassung[[#Headers],[März]]&_xlfn.SINGLE(_JAHR)),Sonstiges[Datum der Scheckeinreichung],\"<=\"&F$4)","v":{"v":0,"d":"0.00 €"}},{"$f":"SUMIFS(AusgabenEinzelauflistung[Scheckbetrag],AusgabenEinzelauflistung[G/L-Code],MonatlicheAusgabenZusammenfassung[[#This Row],[G/L-Code]],AusgabenEinzelauflistung[Rechnungsdatum],\">=\"&G$3,AusgabenEinzelauflistung[Rechnungsdatum],\"<=\"&G$4)+SUMIFS(Sonstiges[Scheckbetrag],Sonstiges[G/L-Code],MonatlicheAusgabenZusammenfassung[[#This Row],[G/L-Code]],Sonstiges[Datum der Scheckeinreichung],\">=\"&DATEVALUE(\" 1. \"&MonatlicheAusgabenZusammenfassung[[#Headers],[April]]&_xlfn.SINGLE(_JAHR)),Sonstiges[Datum der Scheckeinreichung],\"<=\"&G$4)","v":{"v":0,"d":"0.00 €"}},{"$f":"SUMIFS(AusgabenEinzelauflistung[Scheckbetrag],AusgabenEinzelauflistung[G/L-Code],MonatlicheAusgabenZusammenfassung[[#This Row],[G/L-Code]],AusgabenEinzelauflistung[Rechnungsdatum],\">=\"&H$3,AusgabenEinzelauflistung[Rechnungsdatum],\"<=\"&H$4)+SUMIFS(Sonstiges[Scheckbetrag],Sonstiges[G/L-Code],MonatlicheAusgabenZusammenfassung[[#This Row],[G/L-Code]],Sonstiges[Datum der Scheckeinreichung],\">=\"&DATEVALUE(\" 1. \"&MonatlicheAusgabenZusammenfassung[[#Headers],[Mai]]&_xlfn.SINGLE(_JAHR)),Sonstiges[Datum der Scheckeinreichung],\"<=\"&H$4)","v":{"v":0,"d":"0.00 €"}},{"$f":"SUMIFS(AusgabenEinzelauflistung[Scheckbetrag],AusgabenEinzelauflistung[G/L-Code],MonatlicheAusgabenZusammenfassung[[#This Row],[G/L-Code]],AusgabenEinzelauflistung[Rechnungsdatum],\">=\"&I$3,AusgabenEinzelauflistung[Rechnungsdatum],\"<=\"&I$4)+SUMIFS(Sonstiges[Scheckbetrag],Sonstiges[G/L-Code],MonatlicheAusgabenZusammenfassung[[#This Row],[G/L-Code]],Sonstiges[Datum der Scheckeinreichung],\">=\"&DATEVALUE(\" 1. \"&MonatlicheAusgabenZusammenfassung[[#Headers],[Juni]]&_xlfn.SINGLE(_JAHR)),Sonstiges[Datum der Scheckeinreichung],\"<=\"&I$4)","v":{"v":0,"d":"0.00 €"}},{"$f":"SUMIFS(AusgabenEinzelauflistung[Scheckbetrag],AusgabenEinzelauflistung[G/L-Code],MonatlicheAusgabenZusammenfassung[[#This Row],[G/L-Code]],AusgabenEinzelauflistung[Rechnungsdatum],\">=\"&J$3,AusgabenEinzelauflistung[Rechnungsdatum],\"<=\"&J$4)+SUMIFS(Sonstiges[Scheckbetrag],Sonstiges[G/L-Code],MonatlicheAusgabenZusammenfassung[[#This Row],[G/L-Code]],Sonstiges[Datum der Scheckeinreichung],\">=\"&DATEVALUE(\" 1. \"&MonatlicheAusgabenZusammenfassung[[#Headers],[Juli]]&_xlfn.SINGLE(_JAHR)),Sonstiges[Datum der Scheckeinreichung],\"<=\"&J$4)","v":{"v":0,"d":"0.00 €"}},{"$f":"SUMIFS(AusgabenEinzelauflistung[Scheckbetrag],AusgabenEinzelauflistung[G/L-Code],MonatlicheAusgabenZusammenfassung[[#This Row],[G/L-Code]],AusgabenEinzelauflistung[Rechnungsdatum],\">=\"&K$3,AusgabenEinzelauflistung[Rechnungsdatum],\"<=\"&K$4)+SUMIFS(Sonstiges[Scheckbetrag],Sonstiges[G/L-Code],MonatlicheAusgabenZusammenfassung[[#This Row],[G/L-Code]],Sonstiges[Datum der Scheckeinreichung],\">=\"&DATEVALUE(\" 1. \"&MonatlicheAusgabenZusammenfassung[[#Headers],[August]]&_xlfn.SINGLE(_JAHR)),Sonstiges[Datum der Scheckeinreichung],\"<=\"&K$4)","v":{"v":0,"d":"0.00 €"}},{"$f":"SUMIFS(AusgabenEinzelauflistung[Scheckbetrag],AusgabenEinzelauflistung[G/L-Code],MonatlicheAusgabenZusammenfassung[[#This Row],[G/L-Code]],AusgabenEinzelauflistung[Rechnungsdatum],\">=\"&L$3,AusgabenEinzelauflistung[Rechnungsdatum],\"<=\"&L$4)+SUMIFS(Sonstiges[Scheckbetrag],Sonstiges[G/L-Code],MonatlicheAusgabenZusammenfassung[[#This Row],[G/L-Code]],Sonstiges[Datum der Scheckeinreichung],\">=\"&DATEVALUE(\" 1. \"&MonatlicheAusgabenZusammenfassung[[#Headers],[September]]&_xlfn.SINGLE(_JAHR)),Sonstiges[Datum der Scheckeinreichung],\"<=\"&L$4)","v":{"v":0,"d":"0.00 €"}},{"$f":"SUMIFS(AusgabenEinzelauflistung[Scheckbetrag],AusgabenEinzelauflistung[G/L-Code],MonatlicheAusgabenZusammenfassung[[#This Row],[G/L-Code]],AusgabenEinzelauflistung[Rechnungsdatum],\">=\"&M$3,AusgabenEinzelauflistung[Rechnungsdatum],\"<=\"&M$4)+SUMIFS(Sonstiges[Scheckbetrag],Sonstiges[G/L-Code],MonatlicheAusgabenZusammenfassung[[#This Row],[G/L-Code]],Sonstiges[Datum der Scheckeinreichung],\">=\"&DATEVALUE(\" 1. \"&MonatlicheAusgabenZusammenfassung[[#Headers],[Oktober]]&_xlfn.SINGLE(_JAHR)),Sonstiges[Datum der Scheckeinreichung],\"<=\"&M$4)","v":{"v":0,"d":"0.00 €"}},{"$f":"SUMIFS(AusgabenEinzelauflistung[Scheckbetrag],AusgabenEinzelauflistung[G/L-Code],MonatlicheAusgabenZusammenfassung[[#This Row],[G/L-Code]],AusgabenEinzelauflistung[Rechnungsdatum],\">=\"&N$3,AusgabenEinzelauflistung[Rechnungsdatum],\"<=\"&N$4)+SUMIFS(Sonstiges[Scheckbetrag],Sonstiges[G/L-Code],MonatlicheAusgabenZusammenfassung[[#This Row],[G/L-Code]],Sonstiges[Datum der Scheckeinreichung],\">=\"&DATEVALUE(\" 1. \"&MonatlicheAusgabenZusammenfassung[[#Headers],[November]]&_xlfn.SINGLE(_JAHR)),Sonstiges[Datum der Scheckeinreichung],\"<=\"&N$4)","v":{"v":0,"d":"0.00 €"}},{"$f":"SUMIFS(AusgabenEinzelauflistung[Scheckbetrag],AusgabenEinzelauflistung[G/L-Code],MonatlicheAusgabenZusammenfassung[[#This Row],[G/L-Code]],AusgabenEinzelauflistung[Rechnungsdatum],\">=\"&O$3,AusgabenEinzelauflistung[Rechnungsdatum],\"<=\"&O$4)+SUMIFS(Sonstiges[Scheckbetrag],Sonstiges[G/L-Code],MonatlicheAusgabenZusammenfassung[[#This Row],[G/L-Code]],Sonstiges[Datum der Scheckeinreichung],\">=\"&DATEVALUE(\" 1. \"&MonatlicheAusgabenZusammenfassung[[#Headers],[Dezember]]&_xlfn.SINGLE(_JAHR)),Sonstiges[Datum der Scheckeinreichung],\"<=\"&O$4)","v":{"v":0,"d":"0.00 €"}},{"$f":"SUM(MonatlicheAusgabenZusammenfassung[[#This Row],[Januar]:[Dezember]])","v":{"v":0,"d":"0.00 €"}}]
[null,12000,"Sponsoring",{"$f":"SUMIFS(AusgabenEinzelauflistung[Scheckbetrag],AusgabenEinzelauflistung[G/L-Code],MonatlicheAusgabenZusammenfassung[[#This Row],[G/L-Code]],AusgabenEinzelauflistung[Rechnungsdatum],\">=\"&D$3,AusgabenEinzelauflistung[Rechnungsdatum],\"<=\"&D$4)+SUMIFS(Sonstiges[Scheckbetrag],Sonstiges[G/L-Code],MonatlicheAusgabenZusammenfassung[[#This Row],[G/L-Code]],Sonstiges[Datum der Scheckeinreichung],\">=\"&DATEVALUE(\" 1. \"&MonatlicheAusgabenZusammenfassung[[#Headers],[Januar]]&_xlfn.SINGLE(_JAHR)),Sonstiges[Datum der Scheckeinreichung],\"<=\"&D$4)","v":{"v":0,"d":"0.00 €"}},{"$f":"SUMIFS(AusgabenEinzelauflistung[Scheckbetrag],AusgabenEinzelauflistung[G/L-Code],MonatlicheAusgabenZusammenfassung[[#This Row],[G/L-Code]],AusgabenEinzelauflistung[Rechnungsdatum],\">=\"&E$3,AusgabenEinzelauflistung[Rechnungsdatum],\"<=\"&E$4)+SUMIFS(Sonstiges[Scheckbetrag],Sonstiges[G/L-Code],MonatlicheAusgabenZusammenfassung[[#This Row],[G/L-Code]],Sonstiges[Datum der Scheckeinreichung],\">=\"&DATEVALUE(\" 1. \"&MonatlicheAusgabenZusammenfassung[[#Headers],[Februar]]&_xlfn.SINGLE(_JAHR)),Sonstiges[Datum der Scheckeinreichung],\"<=\"&E$4)","v":{"v":0,"d":"0.00 €"}},{"$f":"SUMIFS(AusgabenEinzelauflistung[Scheckbetrag],AusgabenEinzelauflistung[G/L-Code],MonatlicheAusgabenZusammenfassung[[#This Row],[G/L-Code]],AusgabenEinzelauflistung[Rechnungsdatum],\">=\"&F$3,AusgabenEinzelauflistung[Rechnungsdatum],\"<=\"&F$4)+SUMIFS(Sonstiges[Scheckbetrag],Sonstiges[G/L-Code],MonatlicheAusgabenZusammenfassung[[#This Row],[G/L-Code]],Sonstiges[Datum der Scheckeinreichung],\">=\"&DATEVALUE(\" 1. \"&MonatlicheAusgabenZusammenfassung[[#Headers],[März]]&_xlfn.SINGLE(_JAHR)),Sonstiges[Datum der Scheckeinreichung],\"<=\"&F$4)","v":{"v":0,"d":"0.00 €"}},{"$f":"SUMIFS(AusgabenEinzelauflistung[Scheckbetrag],AusgabenEinzelauflistung[G/L-Code],MonatlicheAusgabenZusammenfassung[[#This Row],[G/L-Code]],AusgabenEinzelauflistung[Rechnungsdatum],\">=\"&G$3,AusgabenEinzelauflistung[Rechnungsdatum],\"<=\"&G$4)+SUMIFS(Sonstiges[Scheckbetrag],Sonstiges[G/L-Code],MonatlicheAusgabenZusammenfassung[[#This Row],[G/L-Code]],Sonstiges[Datum der Scheckeinreichung],\">=\"&DATEVALUE(\" 1. \"&MonatlicheAusgabenZusammenfassung[[#Headers],[April]]&_xlfn.SINGLE(_JAHR)),Sonstiges[Datum der Scheckeinreichung],\"<=\"&G$4)","v":{"v":0,"d":"0.00 €"}},{"$f":"SUMIFS(AusgabenEinzelauflistung[Scheckbetrag],AusgabenEinzelauflistung[G/L-Code],MonatlicheAusgabenZusammenfassung[[#This Row],[G/L-Code]],AusgabenEinzelauflistung[Rechnungsdatum],\">=\"&H$3,AusgabenEinzelauflistung[Rechnungsdatum],\"<=\"&H$4)+SUMIFS(Sonstiges[Scheckbetrag],Sonstiges[G/L-Code],MonatlicheAusgabenZusammenfassung[[#This Row],[G/L-Code]],Sonstiges[Datum der Scheckeinreichung],\">=\"&DATEVALUE(\" 1. \"&MonatlicheAusgabenZusammenfassung[[#Headers],[Mai]]&_xlfn.SINGLE(_JAHR)),Sonstiges[Datum der Scheckeinreichung],\"<=\"&H$4)","v":{"v":0,"d":"0.00 €"}},{"$f":"SUMIFS(AusgabenEinzelauflistung[Scheckbetrag],AusgabenEinzelauflistung[G/L-Code],MonatlicheAusgabenZusammenfassung[[#This Row],[G/L-Code]],AusgabenEinzelauflistung[Rechnungsdatum],\">=\"&I$3,AusgabenEinzelauflistung[Rechnungsdatum],\"<=\"&I$4)+SUMIFS(Sonstiges[Scheckbetrag],Sonstiges[G/L-Code],MonatlicheAusgabenZusammenfassung[[#This Row],[G/L-Code]],Sonstiges[Datum der Scheckeinreichung],\">=\"&DATEVALUE(\" 1. \"&MonatlicheAusgabenZusammenfassung[[#Headers],[Juni]]&_xlfn.SINGLE(_JAHR)),Sonstiges[Datum der Scheckeinreichung],\"<=\"&I$4)","v":{"v":0,"d":"0.00 €"}},{"$f":"SUMIFS(AusgabenEinzelauflistung[Scheckbetrag],AusgabenEinzelauflistung[G/L-Code],MonatlicheAusgabenZusammenfassung[[#This Row],[G/L-Code]],AusgabenEinzelauflistung[Rechnungsdatum],\">=\"&J$3,AusgabenEinzelauflistung[Rechnungsdatum],\"<=\"&J$4)+SUMIFS(Sonstiges[Scheckbetrag],Sonstiges[G/L-Code],MonatlicheAusgabenZusammenfassung[[#This Row],[G/L-Code]],Sonstiges[Datum der Scheckeinreichung],\">=\"&DATEVALUE(\" 1. \"&MonatlicheAusgabenZusammenfassung[[#Headers],[Juli]]&_xlfn.SINGLE(_JAHR)),Sonstiges[Datum der Scheckeinreichung],\"<=\"&J$4)","v":{"v":0,"d":"0.00 €"}},{"$f":"SUMIFS(AusgabenEinzelauflistung[Scheckbetrag],AusgabenEinzelauflistung[G/L-Code],MonatlicheAusgabenZusammenfassung[[#This Row],[G/L-Code]],AusgabenEinzelauflistung[Rechnungsdatum],\">=\"&K$3,AusgabenEinzelauflistung[Rechnungsdatum],\"<=\"&K$4)+SUMIFS(Sonstiges[Scheckbetrag],Sonstiges[G/L-Code],MonatlicheAusgabenZusammenfassung[[#This Row],[G/L-Code]],Sonstiges[Datum der Scheckeinreichung],\">=\"&DATEVALUE(\" 1. \"&MonatlicheAusgabenZusammenfassung[[#Headers],[August]]&_xlfn.SINGLE(_JAHR)),Sonstiges[Datum der Scheckeinreichung],\"<=\"&K$4)","v":{"v":0,"d":"0.00 €"}},{"$f":"SUMIFS(AusgabenEinzelauflistung[Scheckbetrag],AusgabenEinzelauflistung[G/L-Code],MonatlicheAusgabenZusammenfassung[[#This Row],[G/L-Code]],AusgabenEinzelauflistung[Rechnungsdatum],\">=\"&L$3,AusgabenEinzelauflistung[Rechnungsdatum],\"<=\"&L$4)+SUMIFS(Sonstiges[Scheckbetrag],Sonstiges[G/L-Code],MonatlicheAusgabenZusammenfassung[[#This Row],[G/L-Code]],Sonstiges[Datum der Scheckeinreichung],\">=\"&DATEVALUE(\" 1. \"&MonatlicheAusgabenZusammenfassung[[#Headers],[September]]&_xlfn.SINGLE(_JAHR)),Sonstiges[Datum der Scheckeinreichung],\"<=\"&L$4)","v":{"v":0,"d":"0.00 €"}},{"$f":"SUMIFS(AusgabenEinzelauflistung[Scheckbetrag],AusgabenEinzelauflistung[G/L-Code],MonatlicheAusgabenZusammenfassung[[#This Row],[G/L-Code]],AusgabenEinzelauflistung[Rechnungsdatum],\">=\"&M$3,AusgabenEinzelauflistung[Rechnungsdatum],\"<=\"&M$4)+SUMIFS(Sonstiges[Scheckbetrag],Sonstiges[G/L-Code],MonatlicheAusgabenZusammenfassung[[#This Row],[G/L-Code]],Sonstiges[Datum der Scheckeinreichung],\">=\"&DATEVALUE(\" 1. \"&MonatlicheAusgabenZusammenfassung[[#Headers],[Oktober]]&_xlfn.SINGLE(_JAHR)),Sonstiges[Datum der Scheckeinreichung],\"<=\"&M$4)","v":{"v":0,"d":"0.00 €"}},{"$f":"SUMIFS(AusgabenEinzelauflistung[Scheckbetrag],AusgabenEinzelauflistung[G/L-Code],MonatlicheAusgabenZusammenfassung[[#This Row],[G/L-Code]],AusgabenEinzelauflistung[Rechnungsdatum],\">=\"&N$3,AusgabenEinzelauflistung[Rechnungsdatum],\"<=\"&N$4)+SUMIFS(Sonstiges[Scheckbetrag],Sonstiges[G/L-Code],MonatlicheAusgabenZusammenfassung[[#This Row],[G/L-Code]],Sonstiges[Datum der Scheckeinreichung],\">=\"&DATEVALUE(\" 1. \"&MonatlicheAusgabenZusammenfassung[[#Headers],[November]]&_xlfn.SINGLE(_JAHR)),Sonstiges[Datum der Scheckeinreichung],\"<=\"&N$4)","v":{"v":0,"d":"0.00 €"}},{"$f":"SUMIFS(AusgabenEinzelauflistung[Scheckbetrag],AusgabenEinzelauflistung[G/L-Code],MonatlicheAusgabenZusammenfassung[[#This Row],[G/L-Code]],AusgabenEinzelauflistung[Rechnungsdatum],\">=\"&O$3,AusgabenEinzelauflistung[Rechnungsdatum],\"<=\"&O$4)+SUMIFS(Sonstiges[Scheckbetrag],Sonstiges[G/L-Code],MonatlicheAusgabenZusammenfassung[[#This Row],[G/L-Code]],Sonstiges[Datum der Scheckeinreichung],\">=\"&DATEVALUE(\" 1. \"&MonatlicheAusgabenZusammenfassung[[#Headers],[Dezember]]&_xlfn.SINGLE(_JAHR)),Sonstiges[Datum der Scheckeinreichung],\"<=\"&O$4)","v":{"v":0,"d":"0.00 €"}},{"$f":"SUM(MonatlicheAusgabenZusammenfassung[[#This Row],[Januar]:[Dezember]])","v":{"v":0,"d":"0.00 €"}}]
[null,"Ergebnis",null,{"$f":"SUBTOTAL(109,MonatlicheAusgabenZusammenfassung[Januar])","v":{"v":0,"d":"0.00 €"}},{"$f":"SUBTOTAL(109,MonatlicheAusgabenZusammenfassung[Februar])","v":{"v":0,"d":"0.00 €"}},{"$f":"SUBTOTAL(109,MonatlicheAusgabenZusammenfassung[März])","v":{"v":0,"d":"0.00 €"}},{"$f":"SUBTOTAL(109,MonatlicheAusgabenZusammenfassung[April])","v":{"v":0,"d":"0.00 €"}},{"$f":"SUBTOTAL(109,MonatlicheAusgabenZusammenfassung[Mai])","v":{"v":0,"d":"0.00 €"}},{"$f":"SUBTOTAL(109,MonatlicheAusgabenZusammenfassung[Juni])","v":{"v":0,"d":"0.00 €"}},{"$f":"SUBTOTAL(109,MonatlicheAusgabenZusammenfassung[Juli])","v":{"v":0,"d":"0.00 €"}},{"$f":"SUBTOTAL(109,MonatlicheAusgabenZusammenfassung[August])","v":{"v":0,"d":"0.00 €"}},{"$f":"SUBTOTAL(109,MonatlicheAusgabenZusammenfassung[September])","v":{"v":0,"d":"0.00 €"}},{"$f":"SUBTOTAL(109,MonatlicheAusgabenZusammenfassung[Oktober])","v":{"v":0,"d":"0.00 €"}},{"$f":"SUBTOTAL(109,MonatlicheAusgabenZusammenfassung[November])","v":{"v":0,"d":"0.00 €"}},{"$f":"SUBTOTAL(109,MonatlicheAusgabenZusammenfassung[Dezember])","v":{"v":0,"d":"0.00 €"}},{"$f":"SUBTOTAL(109,MonatlicheAusgabenZusammenfassung[Summe])","v":{"v":0,"d":"0.00 €"}}]

{"sheet":"EINZELAUFLISTUNG DER AUSGABEN","index":2,"n_rows":6,"n_cols":10,"rows_kept":6,"merged":[[1,1,1,9],[2,1,2,5],[2,6,2,9]]}
[null,"ZUSAMMENFASSUNG MONATLICHE AUSGABEN","SPENDEN & SPONSOREN"]
[null,"EINZELAUFLISTUNG DER AUSGABEN"]
[null,"Datenschnitt zum Filtern von Daten nach „Angefordert von“ befindet sich in dieser Zelle und Datenschnitt zum Filtern von Daten nach „Zahlungsempfänger“ in der Zelle rechts.",{"$nulls":4},"Datenschnitt zum Filtern von Daten nach „Zahlungsempfänger“ in dieser Zelle."]
[null,"G/L-Code","Rechnungsdatum","Rechnungsnr.","Anforderungssteller","Scheckbetrag","Zahlungsempfänger","Scheckverwendung","Verteilungsmethode","Einreichungsdatum"]
[null,1000,"Datum",100,"Andy Teal",{"v":750.75,"d":"750.75 €"},"Consolidated Messenger ","Mailer","Post","Datum"]
[null,7000,"Datum",101,"Robert Walters",{"v":2500,"d":"2,500.00 €"},"A. Datum Corporation ","2 Desktop-Computer","Guthaben","Datum"]

{"sheet":"SPENDEN & SPONSORING","index":3,"n_rows":6,"n_cols":12,"rows_kept":6,"merged":[[1,1,1,11],[2,1,2,5],[2,6,2,11]]}
[null,"EINZELAUFLISTUNG DER AUSGABEN"]
[null,"SPENDEN & SPONSOREN"]
[null,"Datenschnitt zum Filtern von Daten nach „Angefordert von“ befindet sich in dieser Zelle und Datenschnitt zum Filtern von Daten nach „Zahlungsempfänger“ in der Zelle rechts.",{"$nulls":4},"Datenschnitt zum Filtern von Daten nach „Zahlungsempfänger“ in dieser Zelle."]
[null,"G/L-Code","Datum der Scheckeinreichung","Anforderungssteller","Scheckbetrag","Beitrag im Vorjahr","Zahlungsempfänger","Verwendet für","Unterzeichnet von","Kategorie","Verteilungsmethode","Einreichungsdatum"]
[null,12000,"Datum","Susan W. Eaton",{"v":1000,"d":"1,000.00 €"},{"v":12,"d":"12.00 €"},"School of Fine Art ","Stipendien","Kim Ralls","Kunst","Scheck","Datum"]
[null,11000,"Datum","Susan W. Eaton",{"v":2500,"d":"2,500.00 €"},{"v":0,"d":"0.00 €"},"Wingtip Toys ","Gemeinschaft","Kathie Flood","Gemeinschaft","Scheck","Datum"]